Workbook

Sheet Symulacja
A1: Parametry | C1: Produkcja | D1: 5 | H1: Zużycie | L1: Bateria | P1: Ceny | AF1: Wersja: | AG1: 2.1
A2: prod do godziny: | C2: 10 | D2: kWp moc paneli | L2: 20 | M2: kWh moc baterii | P2: 3 | Q2: nr taryfy | X2: 4500 | Y2: cena paneli za 1kWp
A3: 24 | C3: 0.9 | D3: sprawność paneli | H3: 1 | I3: zmiana zużycia | L3: 0.9 | M3: sprawność baterii | P3: =Taryfy!$E$5*(1+P4)*0.5 -> 0.4766004 | Q3: cena sprzedaży prądu | T3: =Taryfy!$E$5*(1+P4) -> 0.9532008 | U3: cena wyceny prądu | X3: 1500 | Y3: cena baterii za 1kWh
C4: 12 | D4: miesiąc profilu produkcji | H4: 1 | I4: nr profilu zuzycia | L4: =60*48/1000*L2/10 -> 5.76 | M4: kWh max ładowanie | P4: 0.2 | Q4: % podwyżki | X4: 5000 | Y4: dofinansowanie
C5: 0 | D5: dzień miesiąca (0 do 10) | L5: 0.65 | M5: % pojemn. Bat. | P5: 1 | Q5: 0/1 - ładowanie od 13-15 i w nocy
C6: =INDEX('Produkcja pradu2'!$A$1:$Y$360,4+($C$4-1)*30,6) -> 1.93945036 | D6: mnożnik korekcyjny | G6: stan baterii | O6: 5 | P6: 7 | Q6: nie ładuj od-do miesiąca | Y6: stan baterii
D7: bilans | G7: dzień 1 | P7: dzień 2 | Y7: dzień 3
B8: produkcja | C8: zużycie | D8: produkcji | E8: zużycia | G8: ładowanie | H8: ład z sieci | I8: rozładowanie | J8: stan | K8: do sieci | L8: z sieci | M8: sprz prądu | N8: zakup prądu | P8: ładowanie | Q8: ład z sieci | R8: rozładowanie | S8: stan | T8: do sieci | U8: z sieci | V8: sprz prądu | W8: zakup prądu | Y8: ładowanie | Z8: ład z sieci | AA8: rozładowanie | AB8: stan | AC8: do sieci | AD8: z sieci | AE8: sprz prądu | AF8: zakup prądu | AI8: Cena zakupu | AJ8: ład z sieci
A9: godzina | B9: kWh | C9: kWh | D9: kWh | E9: kWh | G9: kWh | H9: kWh | I9: kWh | J9: 0 | K9: kWh | L9: kWh | M9: zł | N9: zł | P9: kWh | Q9: kWh | R9: kWh | S9: =J33 -> 13 | T9: kWh | U9: kWh | V9: zł | W9: zł | Y9: kWh | Z9: kWh | AA9: kWh | AB9: =S33 -> 13 | AC9: kWh | AD9: kWh | AE9: zł | AF9: zł
A10: 1 | B10: =IF(A10>$A$3,0,INDEX('Produkcja pradu2'!$A$1:$Y$360,6+(A10-1)+($C$4-1)*30,2+$C$5)/'Produkcja pradu2'!$B$2*$C$2*$C$6) -> 0 | C10: =INDEX('Zużycie prądu'!$A$4:$R$27,Symulacja!A10,3*Symulacja!$H$4)*$H$3 -> 1.3125 | D10: =IF(B10>C10,B10-C10,0) -> 0 | E10: =IF(B10<C10,C10-B10,0) -> 1.3125 | G10: =MIN($D10,$L$2*$L$5-J9,$L$4) -> 0 | H10: =MIN($L$2*$L$5-J9-G10,$L$4-G10)*$AJ10 -> 5.76 | I10: =IF(AND(H10=0,$AJ10=0), MIN($E10,J9),0) -> 0 | J10: =J9+G10*$L$3-I10+H10 -> 5.76 | K10: =IF($D10>G10,$D10-G10,0) -> 0 | L10: =IF($E10>I10,$E10-I10,0)+H10 -> 7.0725 | M10: =K10*$P$3 -> 0 | N10: =L10*$AI10 -> 4.243457565 | P10: =MIN($D10,$L$2*$L$5-S9,$L$4) -> 0 | Q10: =MIN($L$2*$L$5-S9-P10,$L$4-P10)*$AJ10 -> 0 | R10: =IF(AND(Q10=0,$AJ10=0), MIN($E10,S9),0) -> 0 | S10: =S9+P10*$L$3-R10+Q10 -> 13 | T10: =IF($D10>P10,$D10-P10,0) -> 0 | U10: =IF($E10>R10,$E10-R10,0)+Q10 -> 1.3125 | V10: =T10*$P$3 -> 0 | W10: =U10*$AI10 -> 0.787492125 | Y10: =MIN($D10,$L$2*$L$5-AB9,$L$4) -> 0 | Z10: =MIN($L$2*$L$5-AB9-Y10,$L$4-Y10)*$AJ10 -> 0 | AA10: =IF(AND(Z10=0,$AJ10=0), MIN($E10,AB9),0) -> 0 | AB10: =AB9+Y10*$L$3-AA10+Z10 -> 13 | AC10: =IF($D10>Y10,$D10-Y10,0) -> 0 | AD10: =IF($E10>AA10,$E10-AA10,0)+Z10 -> 1.3125 | AE10: =AC10*$P$3 -> 0 | AF10: =AD10*$AI10 -> 0.787492125 | AI10: =INDEX(Taryfy!$A$5:$Z$28,Symulacja!A10,(Symulacja!$P$2-1)*4+5)*(1+$P$4) -> 0.599994 | AJ10: =IF(AND($P$2>1, OR($C$4<$O$6,$C$4>$P$6)),$P$5,0) -> 1
A11: 2 | B11: =IF(A11>$A$3,0,INDEX('Produkcja pradu2'!$A$1:$Y$360,6+(A11-1)+($C$4-1)*30,2+$C$5)/'Produkcja pradu2'!$B$2*$C$2*$C$6) -> 0 | C11: =INDEX('Zużycie prądu'!$A$4:$R$27,Symulacja!A11,3*Symulacja!$H$4)*$H$3 -> 1.3125 | D11: =IF(B11>C11,B11-C11,0) -> 0 | E11: =IF(B11<C11,C11-B11,0) -> 1.3125 | G11: =MIN($D11,$L$2*$L$5-J10,$L$4) -> 0 | H11: =MIN($L$2*$L$5-J10-G11,$L$4-G11)*$AJ11 -> 5.76 | I11: 0 | J11: 11.52 | K11: 0 | L11: 7.0725 | M11: =K11*$P$3 -> 0 | N11: 4.243457565 | P11: 0 | Q11: 0 | R11: 0 | S11: 13 | T11: 0 | U11: 1.3125 | V11: =T11*$P$3 -> 0 | W11: 0.787492125 | Y11: 0 | Z11: 0 | AA11: 0 | AB11: 13 | AC11: 0 | AD11: 1.3125 | AE11: =AC11*$P$3 -> 0 | AF11: 0.787492125 | AI11: =INDEX(Taryfy!$A$5:$Z$28,Symulacja!A11,(Symulacja!$P$2-1)*4+5)*(1+$P$4) -> 0.599994 | AJ11: =IF(AND($P$2>1, OR($C$4<$O$6,$C$4>$P$6)),$P$5,0) -> 1
A12: 3 | B12: =IF(A12>$A$3,0,INDEX('Produkcja pradu2'!$A$1:$Y$360,6+(A12-1)+($C$4-1)*30,2+$C$5)/'Produkcja pradu2'!$B$2*$C$2*$C$6) -> 0 | C12: =INDEX('Zużycie prądu'!$A$4:$R$27,Symulacja!A12,3*Symulacja!$H$4)*$H$3 -> 1.3125 | D12: 0 | E12: 1.3125 | G12: 0 | H12: 1.48 | I12: 0 | J12: 13 | K12: 0 | L12: 2.7925 | M12: 0 | N12: 1.675483245 | P12: 0 | Q12: 0 | R12: 0 | S12: 13 | T12: 0 | U12: 1.3125 | V12: 0 | W12: 0.787492125 | Y12: 0 | Z12: 0 | AA12: 0 | AB12: 13 | AC12: 0 | AD12: 1.3125 | AE12: 0 | AF12: 0.787492125 | AI12: =INDEX(Taryfy!$A$5:$Z$28,Symulacja!A12,(Symulacja!$P$2-1)*4+5)*(1+$P$4) -> 0.599994 | AJ12: 1
A13: 4 | B13: =IF(A13>$A$3,0,INDEX('Produkcja pradu2'!$A$1:$Y$360,6+(A13-1)+($C$4-1)*30,2+$C$5)/'Produkcja pradu2'!$B$2*$C$2*$C$6) -> 0 | C13: =INDEX('Zużycie prądu'!$A$4:$R$27,Symulacja!A13,3*Symulacja!$H$4)*$H$3 -> 1.3125 | D13: 0 | E13: 1.3125 | G13: 0 | H13: 0 | I13: 0 | J13: 13 | K13: 0 | L13: 1.3125 | M13: 0 | N13: 0.787492125 | P13: 0 | Q13: 0 | R13: 0 | S13: 13 | T13: 0 | U13: 1.3125 | V13: 0 | W13: 0.787492125 | Y13: 0 | Z13: 0 | AA13: 0 | AB13: 13 | AC13: 0 | AD13: 1.3125 | AE13: 0 | AF13: 0.787492125 | AI13: =INDEX(Taryfy!$A$5:$Z$28,Symulacja!A13,(Symulacja!$P$2-1)*4+5)*(1+$P$4) -> 0.599994 | AJ13: 1
A14: 5 | B14: =IF(A14>$A$3,0,INDEX('Produkcja pradu2'!$A$1:$Y$360,6+(A14-1)+($C$4-1)*30,2+$C$5)/'Produkcja pradu2'!$B$2*$C$2*$C$6) -> 0 | C14: =INDEX('Zużycie prądu'!$A$4:$R$27,Symulacja!A14,3*Symulacja!$H$4)*$H$3 -> 1.3125 | D14: 0 | E14: 1.3125 | G14: 0 | H14: 0 | I14: 0 | J14: 13 | K14: 0 | L14: 1.3125 | M14: 0 | N14: 0.787492125 | P14: 0 | Q14: 0 | R14: 0 | S14: 13 | T14: 0 | U14: 1.3125 | V14: 0 | W14: 0.787492125 | Y14: 0 | Z14: 0 | AA14: 0 | AB14: 13 | AC14: 0 | AD14: 1.3125 | AE14: 0 | AF14: 0.787492125 | AI14: =INDEX(Taryfy!$A$5:$Z$28,Symulacja!A14,(Symulacja!$P$2-1)*4+5)*(1+$P$4) -> 0.599994 | AJ14: 1
A15: 6 | B15: =IF(A15>$A$3,0,INDEX('Produkcja pradu2'!$A$1:$Y$360,6+(A15-1)+($C$4-1)*30,2+$C$5)/'Produkcja pradu2'!$B$2*$C$2*$C$6) -> 0 | C15: =INDEX('Zużycie prądu'!$A$4:$R$27,Symulacja!A15,3*Symulacja!$H$4)*$H$3 -> 1.3125 | D15: 0 | E15: 1.3125 | G15: 0 | H15: 0 | I15: 1.3125 | J15: 11.6875 | K15: 0 | L15: 0 | M15: 0 | N15: 0 | P15: 0 | Q15: 0 | R15: 1.3125 | S15: 11.6875 | T15: 0 | U15: 0 | V15: 0 | W15: 0 | Y15: 0 | Z15: 0 | AA15: 1.3125 | AB15: 11.6875 | AC15: 0 | AD15: 0 | AE15: 0 | AF15: 0 | AI15: =INDEX(Taryfy!$A$5:$Z$28,Symulacja!A15,(Symulacja!$P$2-1)*4+5)*(1+$P$4) -> 1.1356344 | AJ15: 0
A16: 7 | B16: =IF(A16>$A$3,0,INDEX('Produkcja pradu2'!$A$1:$Y$360,6+(A16-1)+($C$4-1)*30,2+$C$5)/'Produkcja pradu2'!$B$2*$C$2*$C$6) -> 0.06618374353 | C16: =INDEX('Zużycie prądu'!$A$4:$R$27,Symulacja!A16,3*Symulacja!$H$4)*$H$3 -> 1.3 | D16: 0 | E16: 1.233816256 | G16: 0 | H16: 0 | I16: 1.233816256 | J16: 10.45368374 | K16: 0 | L16: 0 | M16: 0 | N16: 0 | P16: 0 | Q16: 0 | R16: 1.233816256 | S16: 10.45368374 | T16: 0 | U16: 0 | V16: 0 | W16: 0 | Y16: 0 | Z16: 0 | AA16: 1.233816256 | AB16: 10.45368374 | AC16: 0 | AD16: 0 | AE16: 0 | AF16: 0 | AI16: =INDEX(Taryfy!$A$5:$Z$28,Symulacja!A16,(Symulacja!$P$2-1)*4+5)*(1+$P$4) -> 1.1356344 | AJ16: 0
A17: 8 | B17: =IF(A17>$A$3,0,INDEX('Produkcja pradu2'!$A$1:$Y$360,6+(A17-1)+($C$4-1)*30,2+$C$5)/'Produkcja pradu2'!$B$2*$C$2*$C$6) -> 0.07769923004 | C17: =INDEX('Zużycie prądu'!$A$4:$R$27,Symulacja!A17,3*Symulacja!$H$4)*$H$3 -> 1.3 | D17: 0 | E17: 1.22230077 | G17: 0 | H17: 0 | I17: 1.22230077 | J17: 9.231382974 | K17: 0 | L17: 0 | M17: 0 | N17: 0 | P17: 0 | Q17: 0 | R17: 1.22230077 | S17: 9.231382974 | T17: 0 | U17: 0 | V17: 0 | W17: 0 | Y17: 0 | Z17: 0 | AA17: 1.22230077 | AB17: 9.231382974 | AC17: 0 | AD17: 0 | AE17: 0 | AF17: 0 | AI17: =INDEX(Taryfy!$A$5:$Z$28,Symulacja!A17,(Symulacja!$P$2-1)*4+5)*(1+$P$4) -> 1.1356344 | AJ17: 0
A18: 9 | B18: =IF(A18>$A$3,0,INDEX('Produkcja pradu2'!$A$1:$Y$360,6+(A18-1)+($C$4-1)*30,2+$C$5)/'Produkcja pradu2'!$B$2*$C$2*$C$6) -> 0.2815839491 | C18: =INDEX('Zużycie prądu'!$A$4:$R$27,Symulacja!A18,3*Symulacja!$H$4)*$H$3 -> 2.2 | D18: 0 | E18: 1.918416051 | G18: 0 | H18: 0 | I18: 1.918416051 | J18: 7.312966923 | K18: 0 | L18: 0 | M18: 0 | N18: 0 | P18: 0 | Q18: 0 | R18: 1.918416051 | S18: 7.312966923 | T18: 0 | U18: 0 | V18: 0 | W18: 0 | Y18: 0 | Z18: 0 | AA18: 1.918416051 | AB18: 7.312966923 | AC18: 0 | AD18: 0 | AE18: 0 | AF18: 0 | AI18: =INDEX(Taryfy!$A$5:$Z$28,Symulacja!A18,(Symulacja!$P$2-1)*4+5)*(1+$P$4) -> 1.1356344 | AJ18: 0
A19: 10 | B19: =IF(A19>$A$3,0,INDEX('Produkcja pradu2'!$A$1:$Y$360,6+(A19-1)+($C$4-1)*30,2+$C$5)/'Produkcja pradu2'!$B$2*$C$2*$C$6) -> 0.7655980295 | C19: =INDEX('Zużycie prądu'!$A$4:$R$27,Symulacja!A19,3*Symulacja!$H$4)*$H$3 -> 1.8 | D19: 0 | E19: 1.03440197 | G19: 0 | H19: 0 | I19: 1.03440197 | J19: 6.278564952 | K19: 0 | L19: 0 | M19: 0 | N19: 0 | P19: 0 | Q19: 0 | R19: 1.03440197 | S19: 6.278564952 | T19: 0 | U19: 0 | V19: 0 | W19: 0 | Y19: 0 | Z19: 0 | AA19: 1.03440197 | AB19: 6.278564952 | AC19: 0 | AD19: 0 | AE19: 0 | AF19: 0 | AI19: =INDEX(Taryfy!$A$5:$Z$28,Symulacja!A19,(Symulacja!$P$2-1)*4+5)*(1+$P$4) -> 1.1356344 | AJ19: 0
A20: 11 | B20: =IF(A20>$A$3,0,INDEX('Produkcja pradu2'!$A$1:$Y$360,6+(A20-1)+($C$4-1)*30,2+$C$5)/'Produkcja pradu2'!$B$2*$C$2*$C$6) -> 0.8568734121 | C20: =INDEX('Zużycie prądu'!$A$4:$R$27,Symulacja!A20,3*Symulacja!$H$4)*$H$3 -> 1.7 | D20: 0 | E20: 0.8431265879 | G20: 0 | H20: 0 | I20: 0.8431265879 | J20: 5.435438364 | K20: 0 | L20: 0 | M20: 0 | N20: 0 | P20: 0 | Q20: 0 | R20: 0.8431265879 | S20: 5.435438364 | T20: 0 | U20: 0 | V20: 0 | W20: 0 | Y20: 0 | Z20: 0 | AA20: 0.8431265879 | AB20: 5.435438364 | AC20: 0 | AD20: 0 | AE20: 0 | AF20: 0 | AI20: =INDEX(Taryfy!$A$5:$Z$28,Symulacja!A20,(Symulacja!$P$2-1)*4+5)*(1+$P$4) -> 1.1356344 | AJ20: 0
A21: 12 | B21: =IF(A21>$A$3,0,INDEX('Produkcja pradu2'!$A$1:$Y$360,6+(A21-1)+($C$4-1)*30,2+$C$5)/'Produkcja pradu2'!$B$2*$C$2*$C$6) -> 1.033605826 | C21: =INDEX('Zużycie prądu'!$A$4:$R$27,Symulacja!A21,3*Symulacja!$H$4)*$H$3 -> 1.8 | D21: 0 | E21: 0.7663941739 | G21: 0 | H21: 0 | I21: 0.7663941739 | J21: 4.66904419 | K21: 0 | L21: 0 | M21: 0 | N21: =L21*$AI21 -> 0 | P21: 0 | Q21: 0 | R21: 0.7663941739 | S21: 4.66904419 | T21: 0 | U21: 0 | V21: 0 | W21: =U21*$AI21 -> 0 | Y21: 0 | Z21: 0 | AA21: 0.7663941739 | AB21: 4.66904419 | AC21: 0 | AD21: 0 | AE21: 0 | AF21: =AD21*$AI21 -> 0 | AI21: =INDEX(Taryfy!$A$5:$Z$28,Symulacja!A21,(Symulacja!$P$2-1)*4+5)*(1+$P$4) -> 1.1356344 | AJ21: 0
A22: 13 | B22: =IF(A22>$A$3,0,INDEX('Produkcja pradu2'!$A$1:$Y$360,6+(A22-1)+($C$4-1)*30,2+$C$5)/'Produkcja pradu2'!$B$2*$C$2*$C$6) -> 0.8470549446 | C22: =INDEX('Zużycie prądu'!$A$4:$R$27,Symulacja!A22,3*Symulacja!$H$4)*$H$3 -> 2 | D22: 0 | E22: 1.152945055 | G22: 0 | H22: 5.76 | I22: 0 | J22: =J21+G22*$L$3-I22+H22 -> 10.42904419 | K22: 0 | L22: =IF($E22>I22,$E22-I22,0)+H22 -> 6.912945055 | M22: 0 | N22: =L22*$AI22 -> 4.147725556 | P22: 0 | Q22: 5.76 | R22: 0 | S22: =S21+P22*$L$3-R22+Q22 -> 10.42904419 | T22: 0 | U22: =IF($E22>R22,$E22-R22,0)+Q22 -> 6.912945055 | V22: 0 | W22: =U22*$AI22 -> 4.147725556 | Y22: 0 | Z22: 5.76 | AA22: 0 | AB22: =AB21+Y22*$L$3-AA22+Z22 -> 10.42904419 | AC22: 0 | AD22: =IF($E22>AA22,$E22-AA22,0)+Z22 -> 6.912945055 | AE22: 0 | AF22: =AD22*$AI22 -> 4.147725556 | AI22: =INDEX(Taryfy!$A$5:$Z$28,Symulacja!A22,(Symulacja!$P$2-1)*4+5)*(1+$P$4) -> 0.599994 | AJ22: =IF(AND($P$2>1, OR($C$4<$O$6,$C$4>$P$6)),$P$5,0) -> 1
A23: 14 | B23: =IF(A23>$A$3,0,INDEX('Produkcja pradu2'!$A$1:$Y$360,6+(A23-1)+($C$4-1)*30,2+$C$5)/'Produkcja pradu2'!$B$2*$C$2*$C$6) -> 0.2450980392 | C23: =INDEX('Zużycie prądu'!$A$4:$R$27,Symulacja!A23,3*Symulacja!$H$4)*$H$3 -> 1.6 | D23: 0 | E23: 1.354901961 | G23: 0 | H23: 2.57095581 | I23: 0 | J23: =J22+G23*$L$3-I23+H23 -> 13 | K23: 0 | L23: =IF($E23>I23,$E23-I23,0)+H23 -> 3.92585777 | M23: 0 | N23: 2.355491107 | P23: 0 | Q23: 2.57095581 | R23: 0 | S23: =S22+P23*$L$3-R23+Q23 -> 13 | T23: 0 | U23: =IF($E23>R23,$E23-R23,0)+Q23 -> 3.92585777 | V23: 0 | W23: 2.355491107 | Y23: 0 | Z23: 2.57095581 | AA23: 0 | AB23: =AB22+Y23*$L$3-AA23+Z23 -> 13 | AC23: 0 | AD23: =IF($E23>AA23,$E23-AA23,0)+Z23 -> 3.92585777 | AE23: 0 | AF23: 2.355491107 | AI23: =INDEX(Taryfy!$A$5:$Z$28,Symulacja!A23,(Symulacja!$P$2-1)*4+5)*(1+$P$4) -> 0.599994 | AJ23: 1
A24: 15 | B24: =IF(A24>$A$3,0,INDEX('Produkcja pradu2'!$A$1:$Y$360,6+(A24-1)+($C$4-1)*30,2+$C$5)/'Produkcja pradu2'!$B$2*$C$2*$C$6) -> 0.02606136421 | C24: =INDEX('Zużycie prądu'!$A$4:$R$27,Symulacja!A24,3*Symulacja!$H$4)*$H$3 -> 1.5 | D24: 0 | E24: 1.473938636 | G24: 0 | H24: 0 | I24: 1.473938636 | J24: 11.52606136 | K24: 0 | L24: 0 | M24: 0 | N24: 0 | P24: 0 | Q24: 0 | R24: 1.473938636 | S24: 11.52606136 | T24: 0 | U24: 0 | V24: 0 | W24: 0 | Y24: 0 | Z24: 0 | AA24: 1.473938636 | AB24: 11.52606136 | AC24: 0 | AD24: 0 | AE24: 0 | AF24: 0 | AI24: =INDEX(Taryfy!$A$5:$Z$28,Symulacja!A24,(Symulacja!$P$2-1)*4+5)*(1+$P$4) -> 1.1356344 | AJ24: 0
A25: 16 | B25: =IF(A25>$A$3,0,INDEX('Produkcja pradu2'!$A$1:$Y$360,6+(A25-1)+($C$4-1)*30,2+$C$5)/'Produkcja pradu2'!$B$2*$C$2*$C$6) -> 0 | C25: =INDEX('Zużycie prądu'!$A$4:$R$27,Symulacja!A25,3*Symulacja!$H$4)*$H$3 -> 1.8 | D25: 0 | E25: 1.8 | G25: 0 | H25: 0 | I25: 1.8 | J25: 9.726061364 | K25: 0 | L25: 0 | M25: 0 | N25: 0 | P25: 0 | Q25: 0 | R25: 1.8 | S25: 9.726061364 | T25: 0 | U25: 0 | V25: 0 | W25: 0 | Y25: 0 | Z25: 0 | AA25: 1.8 | AB25: 9.726061364 | AC25: 0 | AD25: 0 | AE25: 0 | AF25: 0 | AI25: =INDEX(Taryfy!$A$5:$Z$28,Symulacja!A25,(Symulacja!$P$2-1)*4+5)*(1+$P$4) -> 1.1356344 | AJ25: 0
A26: 17 | B26: =IF(A26>$A$3,0,INDEX('Produkcja pradu2'!$A$1:$Y$360,6+(A26-1)+($C$4-1)*30,2+$C$5)/'Produkcja pradu2'!$B$2*$C$2*$C$6) -> 0 | C26: =INDEX('Zużycie prądu'!$A$4:$R$27,Symulacja!A26,3*Symulacja!$H$4)*$H$3 -> 3.4 | D26: 0 | E26: 3.4 | G26: 0 | H26: 0 | I26: 3.4 | J26: 6.326061364 | K26: 0 | L26: 0 | M26: 0 | N26: 0 | P26: 0 | Q26: 0 | R26: 3.4 | S26: 6.326061364 | T26: 0 | U26: 0 | V26: 0 | W26: 0 | Y26: 0 | Z26: 0 | AA26: 3.4 | AB26: 6.326061364 | AC26: 0 | AD26: 0 | AE26: 0 | AF26: 0 | AI26: =INDEX(Taryfy!$A$5:$Z$28,Symulacja!A26,(Symulacja!$P$2-1)*4+5)*(1+$P$4) -> 1.1356344 | AJ26: 0
A27: 18 | B27: =IF(A27>$A$3,0,INDEX('Produkcja pradu2'!$A$1:$Y$360,6+(A27-1)+($C$4-1)*30,2+$C$5)/'Produkcja pradu2'!$B$2*$C$2*$C$6) -> 0 | C27: =INDEX('Zużycie prądu'!$A$4:$R$27,Symulacja!A27,3*Symulacja!$H$4)*$H$3 -> 1.6 | D27: 0 | E27: 1.6 | G27: 0 | H27: 0 | I27: 1.6 | J27: 4.726061364 | K27: 0 | L27: 0 | M27: 0 | N27: 0 | P27: 0 | Q27: 0 | R27: 1.6 | S27: 4.726061364 | T27: 0 | U27: 0 | V27: 0 | W27: 0 | Y27: 0 | Z27: 0 | AA27: 1.6 | AB27: 4.726061364 | AC27: 0 | AD27: 0 | AE27: 0 | AF27: 0 | AI27: =INDEX(Taryfy!$A$5:$Z$28,Symulacja!A27,(Symulacja!$P$2-1)*4+5)*(1+$P$4) -> 1.1356344 | AJ27: 0
A28: 19 | B28: =IF(A28>$A$3,0,INDEX('Produkcja pradu2'!$A$1:$Y$360,6+(A28-1)+($C$4-1)*30,2+$C$5)/'Produkcja pradu2'!$B$2*$C$2*$C$6) -> 0 | C28: =INDEX('Zużycie prądu'!$A$4:$R$27,Symulacja!A28,3*Symulacja!$H$4)*$H$3 -> 1.6 | D28: 0 | E28: 1.6 | G28: 0 | H28: 0 | I28: 1.6 | J28: 3.126061364 | K28: 0 | L28: 0 | M28: 0 | N28: 0 | P28: 0 | Q28: 0 | R28: 1.6 | S28: 3.126061364 | T28: 0 | U28: 0 | V28: 0 | W28: 0 | Y28: 0 | Z28: 0 | AA28: 1.6 | AB28: 3.126061364 | AC28: 0 | AD28: 0 | AE28: 0 | AF28: 0 | AI28: =INDEX(Taryfy!$A$5:$Z$28,Symulacja!A28,(Symulacja!$P$2-1)*4+5)*(1+$P$4) -> 1.1356344 | AJ28: 0
A29: 20 | B29: =IF(A29>$A$3,0,INDEX('Produkcja pradu2'!$A$1:$Y$360,6+(A29-1)+($C$4-1)*30,2+$C$5)/'Produkcja pradu2'!$B$2*$C$2*$C$6) -> 0 | C29: =INDEX('Zużycie prądu'!$A$4:$R$27,Symulacja!A29,3*Symulacja!$H$4)*$H$3 -> 3.6 | D29: 0 | E29: 3.6 | G29: 0 | H29: 0 | I29: 3.126061364 | J29: 0 | K29: 0 | L29: 0.4739386358 | M29: 0 | N29: 0.5382210183 | P29: 0 | Q29: 0 | R29: 3.126061364 | S29: 0 | T29: 0 | U29: 0.4739386358 | V29: 0 | W29: 0.5382210183 | Y29: 0 | Z29: 0 | AA29: 3.126061364 | AB29: 0 | AC29: 0 | AD29: 0.4739386358 | AE29: 0 | AF29: 0.5382210183 | AI29: =INDEX(Taryfy!$A$5:$Z$28,Symulacja!A29,(Symulacja!$P$2-1)*4+5)*(1+$P$4) -> 1.1356344 | AJ29: 0
A30: 21 | B30: =IF(A30>$A$3,0,INDEX('Produkcja pradu2'!$A$1:$Y$360,6+(A30-1)+($C$4-1)*30,2+$C$5)/'Produkcja pradu2'!$B$2*$C$2*$C$6) -> 0 | C30: =INDEX('Zużycie prądu'!$A$4:$R$27,Symulacja!A30,3*Symulacja!$H$4)*$H$3 -> 2 | D30: 0 | E30: 2 | G30: 0 | H30: 0 | I30: 0 | J30: 0 | K30: 0 | L30: 2 | M30: 0 | N30: 2.2712688 | P30: 0 | Q30: 0 | R30: 0 | S30: 0 | T30: 0 | U30: 2 | V30: 0 | W30: 2.2712688 | Y30: 0 | Z30: 0 | AA30: 0 | AB30: 0 | AC30: 0 | AD30: 2 | AE30: 0 | AF30: 2.2712688 | AI30: =INDEX(Taryfy!$A$5:$Z$28,Symulacja!A30,(Symulacja!$P$2-1)*4+5)*(1+$P$4) -> 1.1356344 | AJ30: 0
A31: 22 | B31: =IF(A31>$A$3,0,INDEX('Produkcja pradu2'!$A$1:$Y$360,6+(A31-1)+($C$4-1)*30,2+$C$5)/'Produkcja pradu2'!$B$2*$C$2*$C$6) -> 0 | C31: =INDEX('Zużycie prądu'!$A$4:$R$27,Symulacja!A31,3*Symulacja!$H$4)*$H$3 -> 2.8 | D31: 0 | E31: 2.8 | G31: 0 | H31: 5.76 | I31: 0 | J31: 5.76 | K31: 0 | L31: 8.56 | M31: 0 | N31: 5.13594864 | P31: 0 | Q31: 5.76 | R31: 0 | S31: 5.76 | T31: 0 | U31: 8.56 | V31: 0 | W31: 5.13594864 | Y31: 0 | Z31: 5.76 | AA31: 0 | AB31: 5.76 | AC31: 0 | AD31: 8.56 | AE31: 0 | AF31: 5.13594864 | AI31: =INDEX(Taryfy!$A$5:$Z$28,Symulacja!A31,(Symulacja!$P$2-1)*4+5)*(1+$P$4) -> 0.599994 | AJ31: =IF(AND($P$2>1, OR($C$4<$O$6,$C$4>$P$6)),$P$5,0) -> 1
A32: 23 | B32: =IF(A32>$A$3,0,INDEX('Produkcja pradu2'!$A$1:$Y$360,6+(A32-1)+($C$4-1)*30,2+$C$5)/'Produkcja pradu2'!$B$2*$C$2*$C$6) -> 0 | C32: =INDEX('Zużycie prądu'!$A$4:$R$27,Symulacja!A32,3*Symulacja!$H$4)*$H$3 -> 2.2 | D32: 0 | E32: 2.2 | G32: 0 | H32: 5.76 | I32: 0 | J32: 11.52 | K32: 0 | L32: 7.96 | M32: 0 | N32: 4.77595224 | P32: 0 | Q32: 5.76 | R32: 0 | S32: 11.52 | T32: 0 | U32: 7.96 | V32: 0 | W32: 4.77595224 | Y32: 0 | Z32: 5.76 | AA32: 0 | AB32: 11.52 | AC32: 0 | AD32: 7.96 | AE32: 0 | AF32: 4.77595224 | AI32: =INDEX(Taryfy!$A$5:$Z$28,Symulacja!A32,(Symulacja!$P$2-1)*4+5)*(1+$P$4) -> 0.599994 | AJ32: 1
A33: 24 | B33: =IF(A33>$A$3,0,INDEX('Produkcja pradu2'!$A$1:$Y$360,6+(A33-1)+($C$4-1)*30,2+$C$5)/'Produkcja pradu2'!$B$2*$C$2*$C$6) -> 0 | C33: =INDEX('Zużycie prądu'!$A$4:$R$27,Symulacja!A33,3*Symulacja!$H$4)*$H$3 -> 2.4 | D33: 0 | E33: 2.4 | G33: 0 | H33: 1.48 | I33: 0 | J33: 13 | K33: 0 | L33: 3.88 | M33: 0 | N33: 2.32797672 | P33: 0 | Q33: 1.48 | R33: 0 | S33: 13 | T33: 0 | U33: 3.88 | V33: 0 | W33: 2.32797672 | Y33: 0 | Z33: 1.48 | AA33: 0 | AB33: 13 | AC33: 0 | AD33: 3.88 | AE33: 0 | AF33: 2.32797672 | AI33: =INDEX(Taryfy!$A$5:$Z$28,Symulacja!A33,(Symulacja!$P$2-1)*4+5)*(1+$P$4) -> 0.599994 | AJ33: 1
B35: =SUM(B10:B33) -> 4.199758538 | C35: =SUM(C10:C33) -> 44.475 | I35: max stan | J35: =MAX(J10:J33) -> 13 | K35: =SUM(K10:K33) -> 0 | L35: =SUM(L10:L33) -> 53.27524146 | M35: =SUM(M10:M33) -> 0 | N35: =SUM(N10:N33) -> 33.28996671 | R35: max stan | S35: =MAX(S10:S33) -> 13 | T35: =SUM(T10:T33) -> 0 | U35: =SUM(U10:U33) -> 40.27524146 | V35: =SUM(V10:V33) -> 0 | W35: =SUM(W10:W33) -> 25.49004471 | AA35: max stan | AB35: =MAX(AB10:AB33) -> 13 | AC35: =SUM(AC10:AC33) -> 0 | AD35: =SUM(AD10:AD33) -> 40.27524146 | AE35: =SUM(AE10:AE33) -> 0 | AF35: =SUM(AF10:AF33) -> 25.49004471
A36: wartośc prądu | C36: =C35*T3 -> 42.39360558 | J36: miesięcznie: | K36: =K35*30 -> 0 | L36: =L35*30 -> 1598.257244 | M36: =M35*30 -> 0 | N36: =N35*30 -> 998.6990012 | S36: miesięcznie: | T36: =T35*30 -> 0 | U36: =U35*30 -> 1208.257244 | V36: =V35*30 -> 0 | W36: =W35*30 -> 764.7013412 | Y36: rachunki | Z36: =(AF35-AE35)/C36 -> 0.6012709784 | AB36: miesięcznie: | AC36: =AC35*30 -> 0 | AD36: =AD35*30 -> 1208.257244 | AE36: =AE35*30 -> 0 | AF36: =AF35*30 -> 764.7013412
A37: wartość miesi | C37: =C36*30 -> 1271.808167 | Y37: autokonsumpcja | Z37: =($B$35-AC35)/$B$35 -> 1
D39: wartość prądu | E39: sprzed prądu | F39: zakup prąd | G39: max stan baterii | H39: prod mies | I39: zuż mies | K39: Autokonsupcja | L39: do sieci | M39: z sieci | N39: wzorcowe
A40: miesiąc | B40: profil zużycia | C40: % poj baterii | D40: zł | E40: zł | F40: zł | G40: kWh | H40: kWh | I40: kWh | J40: kWh/kWp | L40: kWh | M40: kWh | N40: kWh/kWp | O40: różnica
A41: 1 | B41: 1 | C41: 0.65 | D41: 1271.808167 | E41: 0 | F41: 791.5565314 | G41: 13 | H41: 73.75 | I41: 1334.25 | J41: =H41/$C$2 -> 7.375 | K41: =(H41-L41)/H41 -> 1 | L41: 0 | M41: 1261.494257 | N41: =118/16 -> 7.375 | O41: =J41-N41 -> 0
A42: 2 | B42: 1 | C42: 0.65 | D42: 1271.808167 | E42: 0 | F42: 751.4687446 | G42: 13 | H42: 136.25 | I42: 1334.25 | J42: 13.625 | K42: 1 | L42: 0 | M42: 1198.662924 | N42: =218/16 -> 13.625 | O42: 0 | Q42: moc paneli | R42: bateria | S42: taryfa | T42: cena | U42: podwyżka | V42: ład z sieci
A43: 3 | B43: 1 | C43: 0.85 | D43: 1271.808167 | E43: 54.85624586 | F43: 597.8319303 | G43: 17 | H43: 456.25 | I43: 1334.25 | J43: 45.625 | K43: 0.7477281437 | L43: 115.0990345 | M43: 996.3965145 | N43: =730/16 -> 45.625 | O43: 0 | P43: nie licz | Q43: kWp | R43: kWh | T43: sprzedaży | U43: % | W43: rachunki | X43: Autokonsupcja | Y43: Lata | Z43: Lata z dofin
A44: 4 | B44: 1 | C44: 0.85 | D44: 1271.808167 | E44: 183.5108125 | F44: 475.3358347 | G44: 17 | H44: 932.5 | I44: 1334.25 | J44: 93.25 | K44: 0.5870871343 | L44: 385.0412473 | M44: 792.2343135 | N44: =1492/16 -> 93.25 | O44: 0 | Q44: 10 | R44: 0 | S44: 1 | T44: =Taryfy!$E$5*(1+U44)*0.8 -> 0.6354672 | U44: 0 | V44: 0 | W44: 0.5160551098 | X44: 0.5124505418 | Y44: 7.535747064 | Z44: 6.698441834 | AA44: po staremu
A45: 5 | B45: 1 | C45: 1 | D45: 1271.808167 | E45: 121.9188836 | F45: 122.3155884 | G45: 19.99999613 | H45: 1461.25 | I45: 1334.25 | J45: 146.125 | K45: 0.8249379336 | L45: 255.8094445 | M45: 187.3698488 | N45: =2338/16 -> 146.125 | O45: 0 | Q45: 10 | R45: 0 | S45: 2 | T45: =Taryfy!$E$5*(1+U45)*0.8 -> 0.6354672 | U45: 0 | V45: 0 | W45: 0.4132996253 | X45: 0.5124505418 | Y45: 6.215926292 | Z45: 5.525267815
A46: 6 | B46: 1 | C46: 1 | D46: 1271.808167 | E46: 63.742082 | F46: 228.5203457 | G46: 19.99996211 | H46: 1201.25 | I46: 1334.25 | J46: 120.125 | K46: 0.8886632752 | L46: 133.7432407 | M46: 313.7963781 | N46: =1922/16 -> 120.125 | O46: 0 | Q46: 10 | R46: 0 | S46: 3 | T46: =Taryfy!$E$5*(1+U46)*0.8 -> 0.6354672 | U46: 0 | V46: 0 | W46: 0.4319093973 | X46: 0.5124505418 | Y46: 6.419550451 | Z46: 5.706267068
A47: 7 | B47: 1 | C47: 1 | D47: 1271.808167 | E47: 51.56611878 | F47: 164.4444041 | G47: 19.99994715 | H47: 1270 | I47: 1334.25 | J47: 127 | K47: 0.9148065274 | L47: 108.1957102 | M47: 228.7571538 | N47: =2032/16 -> 127 | O47: 0 | Q47: 10 | R47: 0 | S47: 2 | T47: =Taryfy!$E$5*(1+U47)*0.5 -> 0.397167 | U47: 0 | V47: 0 | W47: 0.4917316436 | X47: 0.5124505418 | Y47: 7.175119676 | Z47: 6.377884157 | AA47: bez akumula
A48: 8 | B48: 1 | C48: 1 | D48: 1271.808167 | E48: 336.4526198 | F48: 456.7899008 | G48: 20 | H48: 1283.125 | I48: 1334.25 | J48: 128.3125 | K48: 0.449825389 | L48: 705.9427977 | M48: 761.3241145 | N48: =2053/16 -> 128.3125 | O48: 0 | Q48: 7 | R48: 0 | S48: 2 | T48: =Taryfy!$E$5*(1+U48)*0.5 -> 0.397167 | U48: 0 | V48: 0 | W48: 0.589047221 | X48: 0.6493885201 | Y48: 6.211955558 | Z48: 5.225930867
A49: 9 | B49: 1 | C49: 1 | D49: 1271.808167 | E49: 201.3185051 | F49: 485.9653471 | G49: 20 | H49: 953.125 | I49: 1334.25 | J49: 95.3125 | K49: 0.5568207346 | L49: 422.4052374 | M49: 809.9503446 | N49: =1525/16 -> 95.3125 | O49: 0 | Q49: 12 | R49: 0 | S49: 2 | T49: =Taryfy!$E$5*(1+U49)*0.5 -> 0.397167 | U49: 0 | V49: 0 | W49: 0.4294572155 | X49: 0.4512727206 | Y49: 7.670351218 | Z49: 6.960133513
A50: 10 | B50: 1 | C50: 0.85 | D50: 1271.808167 | E50: 47.62730175 | F50: 575.4423037 | G50: 17 | H50: 480 | I50: 1334.25 | J50: 48 | K50: 0.7918097733 | L50: 99.9313088 | M50: 959.080097 | N50: =768/16 -> 48 | O50: 0 | Q50: 10 | R50: 5 | S50: 2 | T50: =Taryfy!$E$5*(1+U50)*0.5 -> 0.397167 | U50: 0 | V50: 1 | W50: 0.3975946708 | X50: 0.6061017648 | Y50: 7.06285363 | Z50: 6.390200903 | AA50: różne akumulatory
A51: 11 | B51: 1 | C51: 0.85 | D51: 1271.808167 | E51: 17.56282841 | F51: 696.9773241 | G51: 17 | H51: 213.125 | I51: 1334.25 | J51: 21.3125 | K51: 0.8270957535 | L51: 36.85021753 | M51: 1161.64049 | N51: =341/16 -> 21.3125 | O51: 0 | Q51: 10 | R51: 10 | S51: 2 | T51: =Taryfy!$E$5*(1+U51)*0.5 -> 0.397167 | U51: 0 | V51: 1 | W51: 0.320647953 | X51: 0.6582496159 | Y51: 7.157577678 | Z51: 6.561112871
A52: 12 | B52: 1 | C52: 0.65 | D52: 1271.808167 | E52: 0 | F52: 761.7468435 | G52: 13 | H52: 125 | I52: 1334.25 | J52: 12.5 | K52: 1 | L52: 0 | M52: 1209.976661 | N52: =200/16 -> 12.5 | O52: 0 | Q52: 10 | R52: 15 | S52: 2 | T52: =Taryfy!$E$5*(1+U52)*0.5 -> 0.397167 | U52: 0 | V52: 1 | W52: 0.2726123445 | X52: 0.7135646403 | Y52: 7.520514524 | Z52: 6.963439374
G53: max: | Q53: 10 | R53: 20 | S53: 2 | T53: =Taryfy!$E$5*(1+U53)*0.5 -> 0.397167 | U53: 0 | V53: 1 | W53: 0.2657066612 | X53: 0.7450170483 | Y53: 8.277541804 | Z53: 7.725705684
D54: =SUM(D41:D52) -> 15261.69801 | E54: =SUM(E41:E52) -> 1078.555398 | F54: =SUM(F41:F52) -> 6108.395098 | G54: =MAX(G41:G52) -> 20 | H54: =SUM(H41:H52) -> 8585.625 | I54: =SUM(I41:I52) -> 16011 | J54: 858.5625 | K54: =(H54-L54)/H54 -> 0.7364177636 | L54: =SUM(L41:L52) -> 2263.018239 | M54: =SUM(M41:M52) -> 9880.683096 | Q54: 12 | R54: 10 | S54: 2 | T54: =Taryfy!$E$5*(1+U54)*0.5 -> 0.397167 | U54: 0 | V54: 1 | W54: 0.2612474881 | X54: 0.5807339394 | Y54: 7.569371628 | Z54: 7.020866438 | AA54: różne moce
C55: per saldo | E55: =IF(E54>F54,E54-F54,0) -> 0 | F55: =IF(F54>E54,F54-E54,0) -> 5029.839701 | Q55: 10 | R55: 10 | S55: 2 | T55: =Taryfy!$E$5*(1+U55)*0.5 -> 0.397167 | U55: 0 | V55: 1 | W55: 0.320647953 | X55: 0.6582496159 | Y55: 7.157577678 | Z55: 6.561112871
C56: zysk | D56: =D54-F55+E55 -> 10231.85831 | F56: =F55/D54 -> 0.3295727446 | G56: <- rachunki | Q56: 8 | R56: 10 | S56: 2 | T56: =Taryfy!$E$5*(1+U56)*0.5 -> 0.397167 | U56: 0 | V56: 1 | W56: 0.3833011631 | X56: 0.7592038918 | Y56: 6.702035974 | Z56: 6.044973624
Q57: 7 | R57: 10 | S57: 2 | T57: =Taryfy!$E$5*(1+U57)*0.5 -> 0.397167 | U57: 0 | V57: 1 | W57: 0.4172533208 | X57: 0.8215733222 | Y57: 6.466702078 | Z57: 5.771357768
D58: normalna | F58: z dofinansowaniem | Q58: 6 | R58: 10 | S58: 2 | T58: =Taryfy!$E$5*(1+U58)*0.5 -> 0.397167 | U58: 0 | V58: 1 | W58: 0.4539824304 | X58: 0.8825380651 | Y58: 6.233793054 | Z58: 5.491674833
C59: cena sprzetu | D59: =C2*X2+L2*X3 -> 75000 | F59: =D59-X4 -> 70000 | Q59: 10 | R59: 20 | S59: 2 | T59: =Taryfy!$E$5*(1+U59)*0.5 -> 0.397167 | U59: 0 | V59: 1 | W59: 0.2657066612 | X59: 0.7450170483 | Y59: 8.277541804 | Z59: 7.725705684 | AA59: cena rośnie
C60: zwrot(lata) | D60: =D59/$D$56 -> 7.330046776 | F60: =F59/$D$56 -> 6.841376991 | Q60: 10 | R60: 20 | S60: 2 | T60: =Taryfy!$E$5*(1+U60)*0.5 -> 0.41702535 | U60: 0.05 | V60: 1 | W60: 0.2657066612 | X60: 0.7450170483 | Y60: 7.64080782 | Z60: 7.131420632
Q61: 10 | R61: 20 | S61: 2 | T61: =Taryfy!$E$5*(1+U61)*0.5 -> 0.4368837 | U61: 0.1 | V61: 1 | W61: 0.2657066612 | X61: 0.7450170483 | Y61: 7.095035832 | Z61: 6.622033444
Q62: 10 | R62: 20 | S62: 2 | T62: =Taryfy!$E$5*(1+U62)*0.5 -> 0.45674205 | U62: 0.15 | V62: 1 | W62: 0.2657066612 | X62: 0.7450170483 | Y62: 6.622033444 | Z62: 6.180564547
Q63: 10 | R63: 20 | S63: 1 | T63: =Taryfy!$E$5*(1+U63)*0.5 -> 0.397167 | U63: 0 | V63: 0 | W63: 0.5098755537 | X63: 0.9069226733 | Y63: 12.40122556 | Z63: 11.57447719 | AA63: różne taryfy
Q64: 10 | R64: 20 | S64: 2 | T64: =Taryfy!$E$5*(1+U64)*0.5 -> 0.397167 | U64: 0 | V64: 0 | W64: 0.4251042876 | X64: 0.9069226733 | Y64: 10.57260244 | Z64: 9.867762273
Q65: 10 | R65: 20 | S65: 2 | T65: =Taryfy!$E$5*(1+U65)*0.5 -> 0.397167 | U65: 0 | V65: 1 | W65: 0.2657066612 | X65: 0.7450170483 | Y65: 8.277541804 | Z65: 7.725705684
Q66: 10 | R66: 20 | S66: 3 | T66: =Taryfy!$E$5*(1+U66)*0.5 -> 0.397167 | U66: 0 | V66: 0 | W66: 0.438397322 | X66: 0.9069226733 | Y66: 10.82285403 | Z66: 10.10133043
Q67: 10 | R67: 20 | S67: 3 | T67: =Taryfy!$E$5*(1+U67)*0.5 -> 0.397167 | U67: 0 | V67: 1 | W67: 0.3107224583 | X67: 0.7450170483 | Y67: 8.818137022 | Z67: 8.23026122

Sheet Taryfy
C1: 1 | G1: 2 | K1: 3 | O1: 4 | S1: 5
C2: G11 | G2: G12 | K2: G12w - od pn do pt | O2: G12w - weekend | S2: G12n
C3: normalna | G3: elastyczna | K3: weekendowa | O3: niedzielna | S3: niedzielna
C4: obrót | D4: dystrybucja | E4: suma | G4: obrót | H4: dystrybucja | I4: suma | K4: obrót | L4: dystrybucja | M4: suma | O4: obrót | P4: dystrybucja | Q4: suma | S4: obrót | T4: dystrybucja | U4: suma
A5: 1 | C5: =0.414*1.23 -> 0.50922 | D5: =(0.2223+0.0095)*1.23 -> 0.285114 | E5: =C5+D5 -> 0.794334 | G5: =0.2985*1.23 -> 0.367155 | H5: =(0.0496+0.0095)*1.23 -> 0.072693 | I5: =G5+H5 -> 0.439848 | K5: =0.3429*1.23 -> 0.421767 | L5: =(0.0541+0.0095)*1.23 -> 0.078228 | M5: =K5+L5 -> 0.499995 | O5: =K5 -> 0.421767 | P5: =L5 -> 0.078228 | Q5: =O5+P5 -> 0.499995 | S5: =0.3195*1.23 -> 0.392985 | T5: =(0.0399+0.0095)*1.23 -> 0.060762 | U5: =S5+T5 -> 0.453747
A6: 2 | C6: =C5 -> 0.50922 | D6: =D5 -> 0.285114 | E6: =C6+D6 -> 0.794334 | G6: =G5 -> 0.367155 | H6: =H5 -> 0.072693 | I6: 0.439848 | K6: =K5 -> 0.421767 | L6: =L5 -> 0.078228 | M6: 0.499995 | O6: =O5 -> 0.421767 | P6: =P5 -> 0.078228 | Q6: 0.499995 | S6: =S5 -> 0.392985 | T6: 0.060762 | U6: 0.453747
A7: 3 | C7: =C6 -> 0.50922 | D7: 0.285114 | E7: 0.794334 | G7: =G6 -> 0.367155 | H7: 0.072693 | I7: 0.439848 | K7: =K6 -> 0.421767 | L7: 0.078228 | M7: 0.499995 | O7: =O6 -> 0.421767 | P7: 0.078228 | Q7: 0.499995 | S7: 0.392985 | T7: 0.060762 | U7: 0.453747
A8: 4 | C8: 0.50922 | D8: 0.285114 | E8: 0.794334 | G8: 0.367155 | H8: 0.072693 | I8: 0.439848 | K8: 0.421767 | L8: 0.078228 | M8: 0.499995 | O8: 0.421767 | P8: 0.078228 | Q8: 0.499995 | S8: 0.392985 | T8: 0.060762 | U8: 0.453747
A9: 5 | C9: 0.50922 | D9: 0.285114 | E9: 0.794334 | G9: 0.367155 | H9: 0.072693 | I9: 0.439848 | K9: 0.421767 | L9: 0.078228 | M9: 0.499995 | O9: 0.421767 | P9: 0.078228 | Q9: 0.499995 | S9: =0.4601*1.23 -> 0.565923 | T9: =(0.2224+0.0095)*1.23 -> 0.285237 | U9: 0.85116
A10: 6 | C10: 0.50922 | D10: 0.285114 | E10: 0.794334 | G10: =0.4818*1.23 -> 0.592614 | H10: =(0.257+0.0095)*1.23 -> 0.327795 | I10: 0.920409 | K10: =0.4877*1.23 -> 0.599871 | L10: =(0.2722+0.0095)*1.23 -> 0.346491 | M10: 0.946362 | O10: 0.421767 | P10: 0.078228 | Q10: 0.499995 | S10: =S9 -> 0.565923 | T10: =T9 -> 0.285237 | U10: 0.85116
A11: 7 | C11: 0.50922 | D11: 0.285114 | E11: 0.794334 | G11: =G10 -> 0.592614 | H11: =(0.2426+0.0102)*1.23 -> 0.310944 | I11: 0.903558 | K11: =K10 -> 0.599871 | L11: =L10 -> 0.346491 | M11: 0.946362 | O11: 0.421767 | P11: 0.078228 | Q11: 0.499995 | S11: =S10 -> 0.565923 | T11: 0.285237 | U11: 0.85116
A12: 8 | C12: 0.50922 | D12: 0.285114 | E12: 0.794334 | G12: =G11 -> 0.592614 | H12: 0.310944 | I12: 0.903558 | K12: =K11 -> 0.599871 | L12: 0.346491 | M12: 0.946362 | O12: 0.421767 | P12: 0.078228 | Q12: 0.499995 | S12: 0.565923 | T12: 0.285237 | U12: 0.85116
A13: 9 | C13: 0.50922 | D13: 0.285114 | E13: 0.794334 | G13: 0.592614 | H13: 0.310944 | I13: 0.903558 | K13: 0.599871 | L13: 0.346491 | M13: 0.946362 | O13: 0.421767 | P13: 0.078228 | Q13: 0.499995 | S13: 0.565923 | T13: 0.285237 | U13: 0.85116
A14: 10 | C14: 0.50922 | D14: 0.285114 | E14: 0.794334 | G14: 0.592614 | H14: 0.310944 | I14: 0.903558 | K14: 0.599871 | L14: 0.346491 | M14: 0.946362 | O14: 0.421767 | P14: 0.078228 | Q14: 0.499995 | S14: 0.565923 | T14: 0.285237 | U14: 0.85116
A15: 11 | C15: 0.50922 | D15: 0.285114 | E15: 0.794334 | G15: 0.592614 | H15: 0.310944 | I15: 0.903558 | K15: 0.599871 | L15: 0.346491 | M15: 0.946362 | O15: 0.421767 | P15: 0.078228 | Q15: 0.499995 | S15: 0.565923 | T15: 0.285237 | U15: 0.85116
A16: 12 | C16: 0.50922 | D16: 0.285114 | E16: 0.794334 | G16: 0.592614 | H16: 0.310944 | I16: 0.903558 | K16: 0.599871 | L16: 0.346491 | M16: 0.946362 | O16: 0.421767 | P16: 0.078228 | Q16: 0.499995 | S16: 0.565923 | T16: 0.285237 | U16: 0.85116
A17: 13 | C17: 0.50922 | D17: 0.285114 | E17: 0.794334 | G17: =G5 -> 0.367155 | H17: =H5 -> 0.072693 | I17: 0.439848 | K17: =K5 -> 0.421767 | L17: =L5 -> 0.078228 | M17: 0.499995 | O17: 0.421767 | P17: 0.078228 | Q17: 0.499995 | S17: 0.565923 | T17: 0.285237 | U17: 0.85116
A18: 14 | C18: 0.50922 | D18: 0.285114 | E18: 0.794334 | G18: =G17 -> 0.367155 | H18: =H17 -> 0.072693 | I18: 0.439848 | K18: =K17 -> 0.421767 | L18: =L17 -> 0.078228 | M18: 0.499995 | O18: 0.421767 | P18: 0.078228 | Q18: 0.499995 | S18: 0.565923 | T18: 0.285237 | U18: 0.85116
A19: 15 | C19: 0.50922 | D19: 0.285114 | E19: 0.794334 | G19: =G10 -> 0.592614 | H19: =(0.2426+0.0102)*1.23 -> 0.310944 | I19: 0.903558 | K19: =K10 -> 0.599871 | L19: =L10 -> 0.346491 | M19: 0.946362 | O19: 0.421767 | P19: 0.078228 | Q19: 0.499995 | S19: 0.565923 | T19: 0.285237 | U19: 0.85116
A20: 16 | C20: 0.50922 | D20: 0.285114 | E20: 0.794334 | G20: =G19 -> 0.592614 | H20: 0.310944 | I20: 0.903558 | K20: =K19 -> 0.599871 | L20: 0.346491 | M20: 0.946362 | O20: 0.421767 | P20: 0.078228 | Q20: 0.499995 | S20: 0.565923 | T20: 0.285237 | U20: 0.85116
A21: 17 | C21: 0.50922 | D21: 0.285114 | E21: 0.794334 | G21: =G20 -> 0.592614 | H21: 0.310944 | I21: 0.903558 | K21: 0.599871 | L21: 0.346491 | M21: 0.946362 | O21: 0.421767 | P21: 0.078228 | Q21: 0.499995 | S21: 0.565923 | T21: 0.285237 | U21: 0.85116
A22: 18 | C22: 0.50922 | D22: 0.285114 | E22: 0.794334 | G22: 0.592614 | H22: 0.310944 | I22: 0.903558 | K22: 0.599871 | L22: 0.346491 | M22: 0.946362 | O22: 0.421767 | P22: 0.078228 | Q22: 0.499995 | S22: 0.565923 | T22: 0.285237 | U22: 0.85116
A23: 19 | C23: 0.50922 | D23: 0.285114 | E23: 0.794334 | G23: 0.592614 | H23: 0.310944 | I23: 0.903558 | K23: 0.599871 | L23: 0.346491 | M23: 0.946362 | O23: 0.421767 | P23: 0.078228 | Q23: 0.499995 | S23: 0.565923 | T23: 0.285237 | U23: 0.85116
A24: 20 | C24: 0.50922 | D24: 0.285114 | E24: 0.794334 | G24: 0.592614 | H24: 0.310944 | I24: 0.903558 | K24: 0.599871 | L24: 0.346491 | M24: 0.946362 | O24: 0.421767 | P24: 0.078228 | Q24: 0.499995 | S24: 0.565923 | T24: 0.285237 | U24: 0.85116
A25: 21 | C25: 0.50922 | D25: 0.285114 | E25: 0.794334 | G25: 0.592614 | H25: 0.310944 | I25: 0.903558 | K25: 0.599871 | L25: 0.346491 | M25: 0.946362 | O25: 0.421767 | P25: 0.078228 | Q25: 0.499995 | S25: 0.565923 | T25: 0.285237 | U25: 0.85116
A26: 22 | C26: 0.50922 | D26: 0.285114 | E26: 0.794334 | G26: =G5 -> 0.367155 | H26: =H5 -> 0.072693 | I26: 0.439848 | K26: =K5 -> 0.421767 | L26: =L5 -> 0.078228 | M26: 0.499995 | O26: 0.421767 | P26: 0.078228 | Q26: 0.499995 | S26: 0.565923 | T26: 0.285237 | U26: 0.85116
A27: 23 | C27: 0.50922 | D27: 0.285114 | E27: 0.794334 | G27: =G26 -> 0.367155 | H27: =H26 -> 0.072693 | I27: 0.439848 | K27: =K26 -> 0.421767 | L27: =L26 -> 0.078228 | M27: 0.499995 | O27: 0.421767 | P27: 0.078228 | Q27: 0.499995 | S27: 0.565923 | T27: 0.285237 | U27: 0.85116
A28: 24 | C28: 0.50922 | D28: 0.285114 | E28: 0.794334 | G28: 0.367155 | H28: =H27 -> 0.072693 | I28: 0.439848 | K28: =K27 -> 0.421767 | L28: =L27 -> 0.078228 | M28: 0.499995 | O28: 0.421767 | P28: 0.078228 | Q28: 0.499995 | S28: 0.565923 | T28: 0.285237 | U28: 0.85116
E30: =SUM(E5:E29) -> 19.064016 | I30: =SUM(I5:I29) -> 17.065143 | M30: =SUM(M5:M29) -> 18.249018 | U30: =SUM(U5:U29) -> 18.838188

Sheet Zużycie prądu
B1: 2021-12-07 | C1: 3 prania | E1: 2021-12-08 | F1: 1 pranie | H1: ostateczna
B2: 1 | C2: Zużycie(kWh) | E2: 2 | H2: 3
A3: 22 | B3: 98257 | D3: 24: | E3: 98304.1 | G3: 24:
A4: 1 | C4: =(B$9-B$3)/8 -> 1.3125 | F4: =(E$9-E$3)/6 -> 1.083333333 | I4: 1.3
A5: 2 | C5: =(B$9-B$3)/8 -> 1.3125 | F5: =(E$9-E$3)/6 -> 1.083333333 | I5: 1.083333333
A6: 3 | C6: 1.3125 | F6: 1.083333333 | I6: 1.083333333
A7: 4 | C7: 1.3125 | F7: 1.083333333 | I7: 1.083333333
A8: 5 | C8: 1.3125 | F8: 1.083333333 | I8: 1.083333333
A9: 6 | B9: 98267.5 | C9: 1.3125 | E9: 98310.6 | F9: 1.083333333 | I9: 1.083333333
A10: 7 | B10: 98268.8 | C10: =B10-B9 -> 1.3 | E10: 98311.5 | F10: =E10-E9 -> 0.9 | I10: 0.9
A11: 8 | B11: 98270.1 | C11: =B11-B10 -> 1.3 | E11: 98312.8 | F11: =E11-E10 -> 1.3 | I11: 1.3
A12: 9 | B12: 98272.3 | C12: 2.2 | E12: 98314.8 | F12: 2 | I12: 2
A13: 10 | B13: 98274.1 | C13: 1.8 | E13: 98316.4 | F13: 1.6 | I13: 1.6
A14: 11 | B14: 98275.8 | C14: 1.7 | E14: 98317.7 | F14: 1.3 | I14: 1.3
A15: 12 | B15: 98277.6 | C15: 1.8 | E15: 98318.8 | F15: 1.1 | I15: 1.1
A16: 13 | B16: 98279.6 | C16: 2 | E16: 98320.7 | F16: 1.9 | I16: 1.9
A17: 14 | B17: 98281.2 | C17: 1.6 | E17: 98321.9 | F17: 1.2 | I17: 1.2
A18: 15 | B18: 98282.7 | C18: 1.5 | E18: 98323.8 | F18: 1.9 | I18: 1.9
A19: 16 | B19: 98284.5 | C19: 1.8 | E19: 98326.1 | F19: 2.3 | I19: 2.3
A20: 17 | B20: 98287.9 | C20: 3.4 | E20: 98327.7 | F20: 1.6 | I20: 3.4
A21: 18 | B21: 98289.5 | C21: 1.6 | E21: 98329.3 | F21: 1.6 | I21: 1.6
A22: 19 | B22: 98291.1 | C22: 1.6 | E22: 98330.9 | F22: 1.6 | I22: 1.6
A23: 20 | B23: 98294.7 | C23: 3.6 | E23: 98333.2 | F23: 2.3 | I23: 3.6
A24: 21 | B24: 98296.7 | C24: 2 | E24: 98334.9 | F24: 1.7 | I24: 1.7
A25: 22 | B25: 98299.5 | C25: 2.8 | E25: 98336.6 | F25: 1.7 | I25: 1.7
A26: 23 | B26: 98301.7 | C26: =B26-B25 -> 2.2 | E26: 98338 | F26: =E26-E25 -> 1.4 | I26: 1.4
A27: 24 | B27: 98304.1 | C27: =B27-B26 -> 2.4 | E27: =E26+1.4 -> 98339.4 | F27: =E27-E26 -> 1.4 | I27: 1.4
C29: =SUM(C4:C27) -> 44.475 | F29: =SUM(F4:F27) -> 35.3 | I29: =SUM(I4:I27) -> 38.61666667

Sheet Produkcja pradu2
A1: źródło | B1: https://pvmonitor.pl//i_user.php?idinst=13&od=2021-06-20&do=2021-06-20#/pv1
A2: kWp | B2: 16
D3: suma | E3: powinno być | F3: mnożnik
C4: styczeń | D4: =SUM(C6:L29)*3 -> 67.53 | E4: 118 | F4: =E4/D4 -> 1.747371539
B5: średnia | C5: 1 | D5: 4 | E5: 7 | F5: 10 | G5: 13 | H5: 16 | I5: 19 | J5: 22 | K5: 25 | L5: 28
A6: 1 | B6: =IF(COUNTA(C6:L6)>0, AVERAGE(C6:L6),0) -> 0
A7: 2 | B7: 0
A8: 3 | B8: 0
A9: 4 | B9: 0
A10: 5 | B10: 0
A11: 6 | B11: 0
A12: 7 | B12: 0.0584 | H12: 0.06 | I12: 0.058 | J12: 0.056 | K12: 0.063 | L12: 0.055
A13: 8 | B13: 0.0701 | C13: 0.069 | D13: 0.056 | E13: 0.056 | F13: 0.049 | G13: 0.064 | H13: 0.347 | I13: 0.033 | J13: 0.01 | K13: 0.008 | L13: 0.009
A14: 9 | B14: 0.218 | C14: 0.06 | D14: 0.082 | E14: 0.082 | F14: 0.015 | G14: 0.019 | H14: 1.497 | I14: 0.138 | J14: 0.123 | K14: 0.121 | L14: 0.043
A15: 10 | B15: 0.3561 | C15: 0.134 | D15: 0.052 | E15: 0.052 | F15: 0.039 | G15: 0.087 | H15: 2.243 | I15: 0.185 | J15: 0.452 | K15: 0.237 | L15: 0.08
A16: 11 | B16: 0.4055 | C16: 0.161 | D16: 0.116 | E16: 0.116 | F16: 0.14 | G16: 0.14 | H16: 2.623 | I16: 0.184 | J16: 0.235 | K16: 0.224 | L16: 0.116
A17: 12 | B17: 0.4361 | C17: 0.175 | D17: 0.152 | E17: 0.152 | F17: 0.073 | G17: 0.111 | H17: 2.646 | I17: 0.197 | J17: 0.323 | K17: 0.448 | L17: 0.084
A18: 13 | B18: 0.3803 | C18: 0.279 | D18: 0.147 | E18: 0.147 | F18: 0.111 | G18: 0.124 | H18: 2.207 | I18: 0.192 | J18: 0.244 | K18: 0.163 | L18: 0.189
A19: 14 | B19: 0.2673 | C19: 0.174 | D19: 0.03 | E19: 0.03 | F19: 0.039 | G19: 0.257 | H19: 1.43 | I19: 0.133 | J19: 0.401 | K19: 0.081 | L19: 0.098
A20: 15 | B20: 0.0847 | C20: 0.036 | D20: 0.029 | E20: 0.029 | F20: 0.026 | G20: 0.079 | H20: 0.31 | I20: 0.019 | J20: 0.133 | K20: 0.013 | L20: 0.173
A21: 16 | B21: 0.006166666667 | G21: 0.002 | H21: 0.002 | I21: 0.006 | J21: 0.005 | K21: 0.012 | L21: 0.01
A22: 17 | B22: 0
A23: 18 | B23: 0
A24: 19 | B24: 0
A25: 20 | B25: 0
A26: 21 | B26: 0
A27: 22 | B27: 0
A28: 23 | B28: 0
A29: 24 | B29: 0
C30: =SUM(C6:C29) -> 1.088 | D30: =SUM(D6:D29) -> 0.664 | E30: 0.664 | F30: 0.492 | G30: 0.883 | H30: 13.365 | I30: 1.145 | J30: 1.982 | K30: 1.37 | L30: 0.857
D33: suma | E33: powinno być | F33: mnożnik
C34: luty | D34: =SUM(C36:L59)*3 -> 210.612 | E34: 218 | F34: =E34/D34 -> 1.035078723
C35: 1 | D35: 4 | E35: 7 | F35: 10 | G35: 13 | H35: 16 | I35: 19 | J35: 22 | K35: 25 | L35: 28
A36: 1 | B36: =IF(COUNTA(C36:L36)>0, AVERAGE(C36:L36),0) -> 0
A37: 2 | B37: 0
A38: 3 | B38: 0
A39: 4 | B39: 0
A40: 5 | B40: 0
A41: 6 | B41: 0.04766666667 | J41: 0.05 | K41: 0.046 | L41: 0.047
A42: 7 | B42: 0.0525 | C42: 0.049 | D42: 0.054 | E42: 0.055 | F42: 0.053 | G42: 0.054 | H42: 0.085 | I42: 0.086 | J42: 0.018 | K42: 0.022 | L42: 0.049
A43: 8 | B43: 0.3158 | C43: 0.029 | D43: 0.273 | E43: 0.093 | F43: 0.164 | G43: 0.507 | H43: 0.223 | I43: 0.259 | J43: 0.168 | K43: 0.13 | L43: 1.312
A44: 9 | B44: 0.9231 | C44: 0.073 | D44: 0.902 | E44: 0.418 | F44: 0.408 | G44: 2.239 | H44: 0.584 | I44: 1.164 | J44: 0.606 | K44: 1.86 | L44: 0.977
A45: 10 | B45: 1.3702 | C45: 0.305 | D45: 0.585 | E45: 0.378 | F45: 2.007 | G45: 2.961 | H45: 0.681 | I45: 3.136 | J45: 0.972 | K45: 1.858 | L45: 0.819
A46: 11 | B46: 1.1667 | C46: 0.299 | D46: 1.055 | E46: 0.326 | F46: 1.062 | G46: 2.942 | H46: 0.467 | I46: 0.676 | J46: 0.76 | K46: 3.154 | L46: 0.926
A47: 12 | B47: 1.3962 | C47: 0.276 | D47: 0.934 | E47: 0.896 | F47: 0.467 | G47: 4.685 | H47: 1.649 | I47: 0.258 | J47: 0.998 | K47: 2.923 | L47: 0.876
A48: 13 | B48: 0.7813 | C48: 0.214 | D48: 0.69 | E48: 2.208 | F48: 0.401 | G48: 1.191 | H48: 0.405 | I48: 0.214 | J48: 0.496 | K48: 1.32 | L48: 0.674
A49: 14 | B49: 0.6237 | C49: 0.019 | D49: 1.381 | E49: 1.154 | F49: 0.312 | G49: 1.014 | H49: 0.121 | I49: 0.207 | J49: 0.464 | K49: 0.696 | L49: 0.869
A50: 15 | B50: 0.2909 | C50: 0.018 | D50: 0.476 | E50: 0.491 | F50: 0.325 | G50: 0.385 | H50: 0.098 | I50: 0.093 | J50: 0.447 | K50: 0.144 | L50: 0.432
A51: 16 | B51: 0.0819 | C51: 0.018 | D51: 0.029 | E51: 0.035 | F51: 0.064 | G51: 0.064 | H51: 0.042 | I51: 0.05 | J51: 0.111 | K51: 0.338 | L51: 0.068
A52: 17 | B52: 0.0076 | H52: 0.003 | I52: 0.004 | J52: 0.01 | K52: 0.01 | L52: 0.011
A53: 18 | B53: 0
A54: 19 | B54: 0
A55: 20 | B55: 0
A56: 21 | B56: 0
A57: 22 | B57: 0
A58: 23 | B58: 0
A59: 24 | B59: 0
D63: suma | E63: powinno być | F63: mnożnik
C64: marzec | D64: =SUM(C66:L89)*3 -> 686.196 | E64: 730 | F64: =E64/D64 -> 1.063835989
C65: 1 | D65: 4 | E65: 7 | F65: 10 | G65: 13 | H65: 16 | I65: 19 | J65: 22 | K65: 25 | L65: 28
A66: 1 | B66: =IF(COUNTA(C66:L66)>0, AVERAGE(C66:L66),0) -> 0
A67: 2 | B67: 0
A68: 3 | B68: 0
A69: 4 | B69: 0
A70: 5 | B70: 0.04725 | I70: 0.051 | J70: 0.046 | K70: 0.043 | L70: 0.049
A71: 6 | B71: 0.0745 | C71: 0.048 | D71: 0.041 | E71: 0.009 | F71: 0.047 | G71: 0.135 | H71: 0.106 | I71: 0.07 | J71: 0.033 | K71: 0.049 | L71: 0.207
A72: 7 | B72: 0.7417 | C72: 0.239 | D72: 0.166 | E72: 0.141 | F72: 0.179 | G72: 0.891 | H72: 0.416 | I72: 0.274 | J72: 1.447 | K72: 2.314 | L72: 1.35
A73: 8 | B73: 1.6456 | C73: 1.003 | D73: 0.42 | E73: 0.184 | F73: 0.731 | G73: 1.83 | H73: 0.831 | I73: 0.971 | J73: 2.893 | K73: 5.049 | L73: 2.544
A74: 9 | B74: 2.7132 | C74: 2.865 | D74: 1.119 | E74: 0.246 | F74: 2.119 | G74: 2.509 | H74: 3.159 | I74: 0.946 | J74: 3.98 | K74: 6.789 | L74: 3.4
A75: 10 | B75: 3.1849 | C75: 3.749 | D75: 2.148 | E75: 0.291 | F75: 3.586 | G75: 0.652 | H75: 3.594 | I75: 1.464 | J75: 4.578 | K75: 7.87 | L75: 3.917
A76: 11 | B76: 3.6108 | C76: 3.47 | D76: 2.452 | E76: 0.317 | F76: 3.099 | G76: 2.282 | H76: 5.005 | I76: 0.692 | J76: 5.299 | K76: 8.295 | L76: 5.197
A77: 12 | B77: 3.9227 | C77: 2.929 | D77: 3.13 | E77: 0.273 | F77: 2.512 | G77: 1.017 | H77: 5.608 | I77: 0.921 | J77: 7.725 | K77: 8.115 | L77: 6.997
A78: 13 | B78: 2.9463 | C78: 1.046 | D78: 2.445 | E78: 0.141 | F78: 0.811 | G78: 2.303 | H78: 2.626 | I78: 1.537 | J78: 5.392 | K78: 7.287 | L78: 5.875
A79: 14 | B79: 2.0614 | C79: 2.247 | D79: 1.296 | E79: 0.093 | F79: 0.263 | G79: 0.238 | H79: 1.353 | I79: 0.849 | J79: 3.821 | K79: 5.939 | L79: 4.515
A80: 15 | B80: 1.4017 | C80: 0.607 | D80: 0.848 | E80: 0.018 | F80: 0.142 | G80: 0.32 | H80: 1.008 | I80: 0.216 | J80: 3.48 | K80: 4.064 | L80: 3.314
A81: 16 | B81: 0.484 | C81: 0.205 | D81: 0.424 | E81: 0.018 | F81: 0.055 | G81: 0.137 | H81: 0.675 | I81: 0.131 | J81: 0.994 | K81: 1.319 | L81: 0.882
A82: 17 | B82: 0.07277777778 | C82: 0.011 | D82: 0.019 | F82: 0.022 | G82: 0.051 | H82: 0.064 | I82: 0.085 | J82: 0.109 | K82: 0.142 | L82: 0.152
A83: 18 | B83: 0.005 | I83: 0.003 | J83: 0.003 | K83: 0.005 | L83: 0.009
A84: 19 | B84: 0
A85: 20 | B85: 0
A86: 21 | B86: 0
A87: 22 | B87: 0
A88: 23 | B88: 0
A89: 24 | B89: 0
D93: suma | E93: powinno być | F93: mnożnik
C94: kwiecień | D94: =SUM(C96:L119)*3 -> 1448.97 | E94: 1492 | F94: =E94/D94 -> 1.029696957
C95: 1 | D95: 4 | E95: 7 | F95: 10 | G95: 13 | H95: 16 | I95: 19 | J95: 22 | K95: 25 | L95: 28
A96: 1 | B96: =IF(COUNTA(C96:L96)>0, AVERAGE(C96:L96),0) -> 0
A97: 2 | B97: 0
A98: 3 | B98: 0
A99: 4 | B99: 0
A100: 5 | B100: 0.05166666667 | G100: 0.05 | H100: 0.037 | I100: 0.049 | J100: 0.053 | K100: 0.057 | L100: 0.064
A101: 6 | B101: 0.1395 | C101: 0.045 | D101: 0.041 | E101: 0.086 | F101: 0.11 | G101: 0.013 | H101: 0.1 | I101: 0.109 | J101: 0.144 | K101: 0.256 | L101: 0.491
A102: 7 | B102: 0.9904 | C102: 0.1 | D102: 0.413 | E102: 0.681 | F102: 0.624 | G102: 0.233 | H102: 0.797 | I102: 1.083 | J102: 0.417 | K102: 1.934 | L102: 3.622
A103: 8 | B103: 2.4637 | C103: 1.967 | D103: 2 | E103: 2.803 | F103: 3.41 | G103: 0.241 | H103: 1.834 | I103: 2.416 | J103: 1.633 | K103: 3.96 | L103: 4.373
A104: 9 | B104: 4.9384 | C104: 4.222 | D104: 5.352 | E104: 5.147 | F104: 5.641 | G104: 0.292 | H104: 2.852 | I104: 3.515 | J104: 3.834 | K104: 8.8 | L104: 9.729
A105: 10 | B105: 5.9734 | C105: 2.346 | D105: 7.382 | E105: 6.521 | F105: 7.112 | G105: 3.339 | H105: 1.457 | I105: 4.534 | J105: 5.315 | K105: 10.402 | L105: 11.326
A106: 11 | B106: 6.7134 | C106: 2.669 | D106: 7.575 | E106: 7.307 | F106: 8.091 | G106: 4.944 | H106: 0.885 | I106: 6.614 | J106: 6.284 | K106: 9.811 | L106: 12.954
A107: 12 | B107: 6.523 | C107: 4.02 | D107: 5.69 | E107: 7.692 | F107: 8.345 | G107: 3.356 | H107: 1.751 | I107: 6.837 | J107: 6.504 | K107: 7.477 | L107: 13.558
A108: 13 | B108: 5.7081 | C108: 2.714 | D108: 3.344 | E108: 7.561 | F108: 7.67 | G108: 3.155 | H108: 2.902 | I108: 6.397 | J108: 6.259 | K108: 5.08 | L108: 11.999
A109: 14 | B109: 5.3272 | C109: 1.538 | D109: 3.903 | E109: 6.833 | F109: 6.85 | G109: 3.661 | H109: 4.42 | I109: 6.132 | J109: 5.602 | K109: 3.092 | L109: 11.241
A110: 15 | B110: 4.3488 | C110: 0.636 | D110: 3.44 | E110: 5.69 | F110: 5.254 | G110: 3.456 | H110: 3.346 | I110: 4.67 | J110: 4.994 | K110: 2.977 | L110: 9.025
A111: 16 | B111: 3.1208 | C111: 0.397 | D111: 1.862 | E111: 4.048 | F111: 4.187 | G111: 1.754 | H111: 2.318 | I111: 3.873 | J111: 3.704 | K111: 2.822 | L111: 6.243
A112: 17 | B112: 1.4699 | C112: 0.185 | D112: 0.637 | E112: 1.616 | F112: 2.035 | G112: 1.255 | H112: 1.162 | I112: 1.491 | J112: 1.786 | K112: 2.03 | L112: 2.502
A113: 18 | B113: 0.45 | C113: 0.073 | D113: 0.179 | E113: 0.21 | F113: 0.257 | G113: 0.366 | H113: 0.33 | I113: 0.303 | J113: 0.453 | K113: 1.196 | L113: 1.133
A114: 19 | B114: 0.1002 | C114: 0.012 | D114: 0.017 | E114: 0.025 | F114: 0.039 | G114: 0.031 | H114: 0.088 | I114: 0.051 | J114: 0.148 | K114: 0.28 | L114: 0.311
A115: 20 | B115: 0.003 | I115: 0.001 | J115: 0.003 | K115: 0.003 | L115: 0.005
A116: 21 | B116: 0
A117: 22 | B117: 0
A118: 23 | B118: 0
A119: 24 | B119: 0
D123: suma | E123: powinno być | F123: mnożnik
C124: maj | D124: =SUM(C126:L149)*3 -> 1898.898 | E124: 2338 | F124: =E124/D124 -> 1.231240435
C125: 1 | D125: 4 | E125: 7 | F125: 10 | G125: 13 | H125: 16 | I125: 19 | J125: 22 | K125: 25 | L125: 28
A126: 1 | B126: =IF(COUNTA(C126:L126)>0, AVERAGE(C126:L126),0) -> 0
A127: 2 | B127: 0
A128: 3 | B128: 0
A129: 4 | B129: 0.0435 | G129: 0.038 | H129: 0.041 | I129: 0.032 | J129: 0.061 | K129: 0.045 | L129: 0.044
A130: 5 | B130: 0.1523 | C130: 0.059 | D130: 0.204 | E130: 0.139 | F130: 0.14 | G130: 0.054 | H130: 0.171 | I130: 0.119 | J130: 0.265 | K130: 0.149 | L130: 0.223
A131: 6 | B131: 0.9461 | C131: 0.298 | D131: 0.737 | E131: 0.697 | F131: 1.398 | G131: 0.388 | H131: 1.057 | I131: 0.66 | J131: 1.788 | K131: 0.768 | L131: 1.67
A132: 7 | B132: 2.2504 | C132: 0.52 | D132: 1.635 | E132: 2.845 | F132: 4.366 | G132: 1.102 | H132: 3.156 | I132: 1.444 | J132: 2.415 | K132: 1.77 | L132: 3.251
A133: 8 | B133: 3.9377 | C133: 0.536 | D133: 3.166 | E133: 5.974 | F133: 7.579 | G133: 3.594 | H133: 4.047 | I133: 2.313 | J133: 3.944 | K133: 2.979 | L133: 5.245
A134: 9 | B134: 5.6589 | C134: 1.569 | D134: 5.888 | E134: 10.524 | F134: 10.097 | G134: 5.291 | H134: 5.467 | I134: 2.281 | J134: 4.623 | K134: 3.464 | L134: 7.385
A135: 10 | B135: 7.0143 | C135: 2.626 | D135: 7.33 | E135: 12.089 | F135: 12.144 | G135: 7.16 | H135: 9.145 | I135: 2.56 | J135: 5.848 | K135: 3.235 | L135: 8.006
A136: 11 | B136: 7.8676 | C136: 2.632 | D136: 9.552 | E136: 13.057 | F136: 13.359 | G136: 9.464 | H136: 3.474 | I136: 5.831 | J136: 7.12 | K136: 9.537 | L136: 4.65
A137: 12 | B137: 7.5831 | C137: 5.607 | D137: 7.635 | E137: 12.304 | F137: 13.179 | G137: 2.92 | H137: 7.805 | I137: 5.132 | J137: 8.531 | K137: 5.591 | L137: 7.127
A138: 13 | B138: 7.4257 | C138: 3.618 | D138: 5.742 | E138: 10.309 | F138: 10.131 | G138: 9.629 | H138: 6.023 | I138: 3.15 | J138: 11.135 | K138: 11.828 | L138: 2.692
A139: 14 | B139: 6.369444444 | D139: 3.655 | E139: 10.382 | F139: 9.467 | G139: 3.051 | H139: 4.402 | I139: 4.084 | J139: 9.72 | K139: 8.555 | L139: 4.009
A140: 15 | B140: 5.9688 | C140: 5.623 | D140: 2.528 | E140: 7.645 | F140: 7.921 | G140: 10.352 | H140: 4.2 | I140: 3.903 | J140: 8.457 | K140: 4.128 | L140: 4.931
A141: 16 | B141: 4.198 | C141: 7.661 | D141: 1.8 | E141: 5.311 | F141: 5.613 | G141: 3.632 | H141: 2.701 | I141: 1.099 | J141: 6.396 | K141: 5.163 | L141: 2.604
A142: 17 | B142: 2.659 | C142: 2.448 | D142: 0.921 | E142: 2.228 | F142: 4.01 | G142: 3.523 | H142: 1.696 | I142: 4.277 | J142: 3.492 | K142: 2.326 | L142: 1.669
A143: 18 | B143: 1.3265 | C143: 1.121 | D143: 0.405 | E143: 1.401 | F143: 1.715 | G143: 1.948 | H143: 1.182 | I143: 1.37 | J143: 2.043 | K143: 0.905 | L143: 1.175
A144: 19 | B144: 0.4887 | C144: 0.287 | D144: 0.073 | E144: 0.289 | F144: 0.331 | G144: 0.714 | H144: 0.469 | I144: 0.504 | J144: 0.794 | K144: 0.707 | L144: 0.719
A145: 20 | B145: 0.0608 | C145: 0.013 | D145: 0.007 | E145: 0.031 | F145: 0.013 | G145: 0.092 | H145: 0.032 | I145: 0.084 | J145: 0.1 | K145: 0.108 | L145: 0.128
A146: 21 | B146: 0.0005 | K146: 0 | L146: 0.001
A147: 22 | B147: 0
A148: 23 | B148: 0
A149: 24 | B149: 0
D153: suma | E153: powinno być | F153: mnożnik
C154: czerwiec | D154: =SUM(C156:L179)*3 -> 2274.714 | E154: 1922 | F154: =E154/D154 -> 0.844941386
C155: 1 | D155: 4 | E155: 7 | F155: 10 | G155: 13 | H155: 16 | I155: 19 | J155: 22 | K155: 25 | L155: 28
A156: 1 | B156: =IF(COUNTA(C156:L156)>0, AVERAGE(C156:L156),0) -> 0
A157: 2 | B157: 0
A158: 3 | B158: 0
A159: 4 | B159: 0.0481 | C159: 0.052 | D159: 0.052 | E159: 0.043 | F159: 0.046 | G159: 0.066 | H159: 0.056 | I159: 0.036 | J159: 0.039 | K159: 0.048 | L159: 0.043
A160: 5 | B160: 0.2981 | C160: 0.214 | D160: 0.337 | E160: 0.498 | F160: 0.405 | G160: 0.383 | H160: 0.226 | I160: 0.272 | J160: 0.051 | K160: 0.349 | L160: 0.246
A161: 6 | B161: 1.3425 | C161: 1.644 | D161: 1.894 | E161: 0.933 | F161: 1.851 | G161: 1.742 | H161: 1.76 | I161: 0.455 | J161: 0.294 | K161: 1.245 | L161: 1.607
A162: 7 | B162: 3.1327 | C162: 4.999 | D162: 4.981 | E162: 1.618 | F162: 2.374 | G162: 4.471 | H162: 4.15 | I162: 0.817 | J162: 1.381 | K162: 2.039 | L162: 4.497
A163: 8 | B163: 4.7059 | C163: 8.125 | D163: 8.125 | E163: 2.03 | F163: 1.903 | G163: 7.379 | H163: 3.597 | I163: 3.573 | J163: 2.362 | K163: 2.85 | L163: 7.115
A164: 9 | B164: 6.1571 | C164: 10.634 | D164: 10.393 | E164: 2.91 | F164: 3.027 | G164: 9.719 | H164: 7.946 | I164: 3.461 | J164: 2.972 | K164: 2.591 | L164: 7.918
A165: 10 | B165: 8.1543 | C165: 12.489 | D165: 11.707 | E165: 3.861 | F165: 5.503 | G165: 11.459 | H165: 11.365 | I165: 3.899 | J165: 3.979 | K165: 5.96 | L165: 11.321
A166: 11 | B166: 8.9089 | C166: 13.579 | D166: 11.047 | E166: 6.953 | F166: 5.167 | G166: 12.538 | H166: 13 | I166: 7.143 | J166: 4.654 | K166: 5.133 | L166: 9.875
A167: 12 | B167: 8.5458 | C167: 13.8 | D167: 12.707 | E167: 6.244 | F167: 2.378 | G167: 12.868 | H167: 13.388 | I167: 8.249 | J167: 5.181 | K167: 4.763 | L167: 5.88
A168: 13 | B168: 8.46 | C168: 13.406 | D168: 12.569 | E168: 5.258 | F168: 2.643 | G168: 12.492 | H168: 9.067 | I168: 7.253 | J168: 8.334 | K168: 8.372 | L168: 5.206
A169: 14 | B169: 8.0616 | C169: 10.978 | D169: 12.234 | E169: 4.786 | F169: 3.072 | G169: 11.502 | H169: 8.933 | I169: 8.761 | J169: 8.702 | K169: 8.092 | L169: 3.556
A170: 15 | B170: 7.1097 | C170: 7.779 | D170: 8.466 | E170: 7.131 | F170: 1.776 | G170: 9.892 | H170: 5.965 | I170: 7.872 | J170: 8.904 | K170: 7.492 | L170: 5.82
A171: 16 | B171: 5.1613 | C171: 5.748 | D171: 5.243 | E171: 2.626 | F171: 1.717 | G171: 7.442 | H171: 5.323 | I171: 5.71 | J171: 9.079 | K171: 7.084 | L171: 1.641
A172: 17 | B172: 3.1412 | C172: 3.537 | D172: 3.914 | E172: 2.714 | F172: 1.905 | G172: 4.339 | H172: 4.583 | I172: 1.674 | J172: 4.793 | K172: 1.991 | L172: 1.962
A173: 18 | B173: 1.8055 | C173: 1.949 | D173: 1.757 | E173: 1.325 | F173: 1.386 | G173: 1.423 | H173: 2.577 | I173: 0.525 | J173: 3.876 | K173: 1.619 | L173: 1.618
A174: 19 | B174: 0.5922 | C174: 0.422 | D174: 0.691 | E174: 0.492 | F174: 0.248 | G174: 0.465 | H174: 0.793 | I174: 0.221 | J174: 1.215 | K174: 0.66 | L174: 0.715
A175: 20 | B175: 0.1905 | C175: 0.125 | D175: 0.175 | E175: 0.077 | F175: 0.14 | G175: 0.187 | H175: 0.151 | I175: 0.05 | J175: 0.347 | K175: 0.387 | L175: 0.266
A176: 21 | B176: 0.0084 | C176: 0.003 | D176: 0.004 | E176: 0.007 | F176: 0.009 | G176: 0.005 | H176: 0.007 | I176: 0.011 | J176: 0.01 | K176: 0.018 | L176: 0.01
A177: 22 | B177: 0
A178: 23 | B178: 0
A179: 24 | B179: 0
D183: suma | E183: powinno być | F183: mnożnik
C184: lipiec | D184: =SUM(C186:L209)*3 -> 2274.009 | E184: 2032 | F184: =E184/D184 -> 0.8935760588
B185: średnia | C185: 1 | D185: 4 | E185: 7 | F185: 10 | G185: 13 | H185: 16 | I185: 19 | J185: 22 | K185: 25 | L185: 28
A186: 1 | B186: =IF(COUNTA(C186:L186)>0, AVERAGE(C186:L186),0) -> 0
A187: 2 | B187: 0
A188: 3 | B188: 0
A189: 4 | B189: 0.0355 | C189: 0.038 | D189: 0.041 | E189: 0.039 | F189: 0.033 | G189: 0.031 | H189: 0.033 | I189: 0.036 | J189: 0.033
A190: 5 | B190: 0.1664 | C190: 0.259 | D190: 0.219 | E190: 0.197 | F190: 0.22 | G190: 0.053 | H190: 0.153 | I190: 0.132 | J190: 0.111 | K190: 0.124 | L190: 0.196
A191: 6 | B191: 1.0758 | C191: 0.844 | D191: 1.428 | E191: 1.446 | F191: 1.049 | G191: 0.476 | H191: 1.257 | I191: 1.203 | J191: 1.133 | K191: 0.933 | L191: 0.989
A192: 7 | B192: 3.2553 | C192: 2.767 | D192: 4.105 | E192: 4.064 | F192: 2.048 | G192: 1.557 | H192: 4.031 | I192: 3.911 | J192: 4.071 | K192: 3.534 | L192: 2.465
A193: 8 | B193: 5.2745 | C193: 3.87 | D193: 5.871 | E193: 5.505 | F193: 2.139 | G193: 2.799 | H193: 7.325 | I193: 6.765 | J193: 6.931 | K193: 6.882 | L193: 4.658
A194: 9 | B194: 6.9077 | C194: 6.786 | D194: 7.562 | E194: 6.106 | F194: 1.546 | G194: 5.733 | H194: 9.845 | I194: 8.517 | J194: 7.013 | K194: 9.251 | L194: 6.718
A195: 10 | B195: 8.515 | C195: 7.807 | D195: 10.153 | E195: 8.421 | F195: 1.702 | G195: 9.159 | H195: 9.566 | I195: 10.067 | J195: 7.873 | K195: 11.544 | L195: 8.858
A196: 11 | B196: 9.4242 | C196: 8.067 | D196: 9.25 | E196: 9.804 | F196: 1.513 | G196: 12.107 | H196: 11.351 | I196: 11.212 | J196: 9.815 | K196: 12.927 | L196: 8.196
A197: 12 | B197: 8.5479 | C197: 5.614 | D197: 10.058 | E197: 5.927 | F197: 5.41 | G197: 11.587 | H197: 12.518 | I197: 11.438 | J197: 6.979 | K197: 13.243 | L197: 2.705
A198: 13 | B198: 8.4009 | C198: 4.279 | D198: 12.188 | E198: 5.696 | F198: 6.323 | G198: 10.404 | H198: 11.982 | I198: 9.32 | J198: 5.896 | K198: 8.731 | L198: 9.19
A199: 14 | B199: 7.9987 | C199: 2.895 | D199: 10.695 | E199: 9.002 | F199: 4.775 | G199: 10.338 | H199: 11.361 | I199: 6.528 | J199: 8.851 | K199: 6.054 | L199: 9.488
A200: 15 | B200: 6.2713 | C200: 4.211 | D200: 9.855 | E200: 6.622 | F200: 1.89 | G200: 9.233 | H200: 4.361 | I200: 7.304 | J200: 6.01 | K200: 5.206 | L200: 8.021
A201: 16 | B201: 4.6816 | C201: 2.633 | D201: 7.254 | E201: 6.198 | F201: 1.045 | G201: 5.884 | H201: 1.692 | I201: 6.113 | J201: 4.339 | K201: 5.039 | L201: 6.619
A202: 17 | B202: 2.9772 | C202: 1.116 | D202: 4.142 | E202: 3.769 | F202: 3.451 | G202: 4.108 | H202: 0.268 | I202: 4.39 | J202: 3.472 | K202: 2.221 | L202: 2.835
A203: 18 | B203: 1.5608 | C203: 0.783 | D203: 2.127 | E203: 2.4 | F203: 1.946 | G203: 1.867 | H203: 0.146 | I203: 1.289 | J203: 1.66 | K203: 1.823 | L203: 1.567
A204: 19 | B204: 0.5758 | C204: 0.664 | D204: 0.947 | E204: 0.881 | F204: 0.705 | G204: 0.448 | H204: 0.132 | I204: 0.364 | J204: 0.597 | K204: 0.565 | L204: 0.455
A205: 20 | B205: 0.1348 | C205: 0.094 | D205: 0.118 | E205: 0.151 | F205: 0.177 | G205: 0.16 | H205: 0.066 | I205: 0.097 | J205: 0.16 | K205: 0.27 | L205: 0.055
A206: 21 | B206: 0.005 | C206: 0.007 | D206: 0.008 | E206: 0.006 | F206: 0.007 | G206: 0.004 | H206: 0.005 | I206: 0.002 | J206: 0.001
A207: 22 | B207: 0
A208: 23 | B208: 0
A209: 24 | B209: 0
D213: suma | E213: powinno być | F213: mnożnik
C214: sierpień | D214: =SUM(C216:L239)*3 -> 2109.858 | E214: 2053 | F214: =E214/D214 -> 0.973051267
B215: średnia | C215: 1 | D215: 4 | E215: 7 | F215: 10 | G215: 13 | H215: 16 | I215: 19 | J215: 22 | K215: 25 | L215: 28
A216: 1 | B216: =IF(COUNTA(C216:L216)>0, AVERAGE(C216:L216),0) -> 0
A217: 2 | B217: 0
A218: 3 | B218: 0
A219: 4 | B219: 0
A220: 5 | B220: 0.0488 | C220: 0.093 | D220: 0.034 | E220: 0.043 | F220: 0.065 | G220: 0.059 | H220: 0.046 | I220: 0.041 | J220: 0.033 | K220: 0.035 | L220: 0.039
... 127 more rows

Sheet Produkcja pradu
A1: źródło | B1: https://pvmonitor.pl//i_user.php?idinst=13&od=2021-06-20&do=2021-06-20#/pv1
A2: kWp | B2: 16
B3: 1 | C3: % do 16 | D3: 2 | E3: % do 16 | F3: 3 | G3: % do 16 | H3: 4 | I3: % do 16 | J3: 5 | K3: % do 16 | L3: 6 | M3: % do 16 | N3: 7 | O3: % do 16 | P3: 8 | Q3: % do 16 | R3: 9 | S3: % do 16 | T3: 10 | U3: % do 16 | V3: 11 | W3: % do 16 | X3: 12 | Y3: % do 16
A4: 1
A5: 2
A6: 3
A7: 4 | J7: 0.131 | K7: =J7/$B$2 -> 0.0081875 | L7: 0.066 | M7: =L7/$B$2 -> 0.004125 | N7: 0.035 | O7: =N7/$B$2 -> 0.0021875
A8: 5 | F8: 0.42 | G8: =F8/$B$2 -> 0.02625 | H8: 0.28 | I8: =H8/$B$2 -> 0.0175 | J8: 0.159 | K8: 0.0099375 | L8: 0.383 | M8: 0.0239375 | N8: 0.165 | O8: 0.0103125 | P8: 0.074 | Q8: =P8/$B$2 -> 0.004625
A9: 6 | D9: 0.223 | E9: =D9/$B$2 -> 0.0139375 | F9: 0.68 | G9: 0.0425 | H9: 0.419 | I9: 0.0261875 | J9: 1.411 | K9: 0.0881875 | L9: 1.742 | M9: 0.108875 | N9: 1.298 | O9: 0.081125 | P9: 0.781 | Q9: 0.0488125 | T9: 0.159 | U9: =T9/$B$2 -> 0.0099375
A10: 7 | B10: 0.282 | C10: =B10/$B$2 -> 0.017625 | D10: 0.212 | E10: 0.01325 | F10: 4.79 | G10: 0.299375 | H10: 3.211 | I10: 0.2006875 | J10: 4.279 | K10: 0.2674375 | L10: 4.471 | M10: 0.2794375 | N10: 4.233 | O10: 0.2645625 | P10: 3.537 | Q10: 0.2210625 | R10: 0.404 | S10: =R10/$B$2 -> 0.02525 | T10: 0.461 | U10: 0.0288125 | V10: 0.169 | W10: =V10/$B$2 -> 0.0105625
A11: 8 | B11: 0.044 | C11: =B11/$B$2 -> 0.00275 | D11: 3.909 | E11: 0.2443125 | F11: 8.511 | G11: 0.5319375 | H11: 6.289 | I11: 0.3930625 | J11: 6.871 | K11: 0.4294375 | L11: 7.379 | M11: 0.4611875 | N11: 7.134 | O11: 0.445875 | P11: 6.598 | Q11: 0.412375 | R11: 3.317 | S11: 0.2073125 | T11: 3.39 | U11: 0.211875 | V11: 2.287 | W11: 0.1429375 | X11: 0.147 | Y11: =X11/$B$2 -> 0.0091875
A12: 9 | B12: 0.427 | C12: 0.0266875 | D12: 6.848 | E12: 0.428 | F12: 10.69 | G12: 0.668125 | H12: 9.671 | I12: 0.6044375 | J12: 9.919 | K12: 0.6199375 | L12: 9.719 | M12: 0.6074375 | N12: 9.664 | O12: 0.604 | P12: 8.974 | Q12: 0.560875 | R12: 6.256 | S12: 0.391 | T12: 6.899 | U12: 0.4311875 | V12: 5.156 | W12: 0.32225 | X12: 0.895 | Y12: 0.0559375
A13: 10 | B13: 1.781 | C13: 0.1113125 | D13: 9.794 | E13: 0.612125 | F13: 13.28 | G13: 0.83 | H13: 11.859 | I13: 0.7411875 | J13: 11.79 | K13: 0.736875 | L13: 11.459 | M13: 0.7161875 | N13: 11.31 | O13: 0.706875 | P13: 10.938 | Q13: 0.683625 | R13: 8.606 | S13: 0.537875 | T13: 9.761 | U13: 0.6100625 | V13: 7.54 | W13: 0.47125 | X13: 2.434 | Y13: 0.152125
A14: 11 | B14: 4.503 | C14: 0.2814375 | D14: 10.91 | E14: 0.681875 | F14: 12.839 | G14: 0.8024375 | H14: 12.13 | I14: 0.758125 | J14: 12.031 | K14: 0.7519375 | L14: 12.538 | M14: 0.783625 | N14: 12.197 | O14: 0.7623125 | P14: 12.165 | Q14: 0.7603125 | R14: 9.796 | S14: 0.61225 | T14: 10.58 | U14: 0.66125 | V14: 8.137 | W14: 0.5085625 | X14: 5.315 | Y14: 0.3321875
A15: 12 | B15: 2.534 | C15: 0.158375 | D15: 10.47 | E15: 0.654375 | F15: 12.91 | G15: 0.806875 | H15: 13.37 | I15: 0.835625 | J15: 13.05 | K15: 0.815625 | L15: 12.868 | M15: 0.80425 | N15: 12.228 | O15: 0.76425 | P15: 12.573 | Q15: 0.7858125 | R15: 10.552 | S15: 0.6595 | T15: 10.319 | U15: 0.6449375 | V15: 6.651 | W15: 0.4156875 | X15: 5.624 | Y15: 0.3515
A16: 13 | B16: 1.346 | C16: 0.084125 | D16: 8.485 | E16: 0.5303125 | F16: 11.41 | G16: 0.713125 | H16: 11.51 | I16: 0.719375 | J16: 11.669 | K16: 0.7293125 | L16: 12.492 | M16: 0.78075 | N16: 11.68 | O16: 0.73 | P16: 12.186 | Q16: 0.761625 | R16: 10.353 | S16: 0.6470625 | T16: 9.441 | U16: 0.5900625 | V16: 5.894 | W16: 0.368375 | X16: 2.85 | Y16: 0.178125
A17: 14 | B17: 1.625 | C17: 0.1015625 | D17: 6.482 | E17: 0.405125 | F17: 8.76 | G17: 0.5475 | H17: 11.651 | I17: 0.7281875 | J17: 11.69 | K17: 0.730625 | L17: 11.502 | M17: 0.718875 | N17: 9.987 | O17: 0.6241875 | P17: 11.016 | Q17: 0.6885 | R17: 9.765 | S17: 0.6103125 | T17: 8.33 | U17: 0.520625 | V17: 2.824 | W17: 0.1765 | X17: 1.059 | Y17: 0.0661875
A18: 15 | B18: 0.514 | C18: 0.032125 | D18: 3.469 | E18: 0.2168125 | F18: 5.27 | G18: 0.329375 | H18: 9.73 | I18: 0.608125 | J18: 9.83 | K18: 0.614375 | L18: 9.892 | M18: 0.61825 | N18: 8.871 | O18: 0.5544375 | P18: 9.318 | Q18: 0.582375 | R18: 7.374 | S18: 0.460875 | T18: 4.99 | U18: 0.311875 | V18: 0.331 | W18: 0.0206875 | X18: 0.047 | Y18: 0.0029375
A19: 16 | B19: 0.011 | C19: 0.0006875 | D19: 0.816 | E19: 0.051 | F19: 2.371 | G19: 0.1481875 | H19: 5.06 | I19: 0.31625 | J19: 6.67 | K19: 0.416875 | L19: 7.442 | M19: 0.465125 | N19: 6.324 | O19: 0.39525 | P19: 6.485 | Q19: 0.4053125 | R19: 4.143 | S19: 0.2589375 | T19: 3 | U19: 0.1875
A20: 17 | D20: 0.014 | E20: 0.000875 | F20: 0.12 | G20: 0.0075 | H20: 2.049 | I20: 0.1280625 | J20: 4.02 | K20: 0.25125 | L20: 4.339 | M20: 0.2711875 | N20: 4.205 | O20: 0.2628125 | P20: 3.27 | Q20: 0.204375 | R20: 1.612 | S20: 0.10075 | T20: 1.3 | U20: 0.08125
A21: 18 | F21: 0.009 | G21: 0.0005625 | H21: 0.84 | I21: 0.0525 | J21: 1.24 | K21: 0.0775 | L21: 1.423 | M21: 0.0889375 | N21: 1.517 | O21: 0.0948125 | P21: 0.878 | Q21: 0.054875 | R21: 0.408 | S21: 0.0255 | T21: 0.05 | U21: 0.003125
A22: 19 | H22: 0.16 | I22: 0.01 | J22: 0.641 | K22: 0.0400625 | L22: 0.465 | M22: 0.0290625 | N22: 0.544 | O22: 0.034 | P22: 0.253 | Q22: 0.0158125 | R22: 0.004 | S22: 0.00025
A23: 20 | H23: 0 | I23: 0 | J23: 0.089 | K23: 0.0055625 | L23: 0.187 | M23: 0.0116875 | N23: 0.147 | O23: 0.0091875 | P23: 0.036 | Q23: 0.00225
A24: 21 | L24: 0.005 | M24: 0.0003125 | N24: 0.003 | O24: 0.0001875
A25: 22
A26: 23
A27: 24
A28: suma | B28: =SUM(B4:B27) -> 13.067 | D28: =SUM(D4:D27) -> 61.632 | F28: =SUM(F4:F27) -> 92.06 | H28: =SUM(H4:H27) -> 98.229 | J28: =SUM(J4:J27) -> 105.49 | L28: =SUM(L4:L27) -> 108.372 | N28: =SUM(N4:N27) -> 101.542 | P28: =SUM(P4:P27) -> 99.082 | R28: =SUM(R4:R27) -> 72.59 | T28: =SUM(T4:T27) -> 68.68 | V28: =SUM(V4:V27) -> 38.989 | X28: =SUM(X4:X27) -> 18.371
A31: prod miesięczna (kWh) | C31: 147 | E31: 651 | G31: 1102 | I31: 1683 | K31: 2153 | M31: 2540 | O31: 2032 | Q31: 2053 | S31: 1525 | U31: 1105 | W31: 341 | Y31: 200
A32: kWh/kWp miesięcznie | C32: =C31/$B$2 -> 9.1875 | E32: =E31/$B$2 -> 40.6875 | G32: =G31/$B$2 -> 68.875 | I32: =I31/$B$2 -> 105.1875 | K32: =K31/$B$2 -> 134.5625 | M32: =M31/$B$2 -> 158.75 | O32: =O31/$B$2 -> 127 | Q32: =Q31/$B$2 -> 128.3125 | S32: =S31/$B$2 -> 95.3125 | U32: =U31/$B$2 -> 69.0625 | W32: =W31/$B$2 -> 21.3125 | Y32: =Y31/$B$2 -> 12.5
A33: prod dzienne średnia | C33: =C31/30 -> 4.9 | E33: =E31/30 -> 21.7 | G33: =G31/30 -> 36.73333333 | I33: =I31/30 -> 56.1 | K33: =K31/30 -> 71.76666667 | M33: =M31/30 -> 84.66666667 | O33: =O31/30 -> 67.73333333 | Q33: =Q31/30 -> 68.43333333 | S33: =S31/30 -> 50.83333333 | U33: =U31/30 -> 36.83333333 | W33: =W31/30 -> 11.36666667 | Y33: =Y31/30 -> 6.666666667
A35: % średniej mieś do max | C35: =C33/B28 -> 0.3749904339 | E35: =E33/D28 -> 0.3520898235 | G35: =G33/F28 -> 0.3990151351 | I35: =I33/H28 -> 0.5711144367 | K35: =K33/J28 -> 0.6803172497 | M35: =M33/L28 -> 0.781259612 | O35: =O33/N28 -> 0.6670474615 | Q35: =Q33/P28 -> 0.6906737181 | S35: =S33/R28 -> 0.700280112 | U35: =U33/T28 -> 0.5363036304 | W35: =W33/V28 -> 0.2915352193 | Y35: =Y33/X28 -> 0.362890788
